Workbook

Sheet 1. Info
AB1: Algoma Power Inc.
AB2: Atikokan Hydro Inc.
AB3: Attawapiskat Power Corporation
AB4: Bluewater Power Distribution Corporation
AB5: Brant County Power Inc.
AB6: Brantford Power Inc.
AB7: Burlington Hydro Inc.
AB8: Cambridge and North Dumfries Hydro Inc.
AB9: Canadian Niagara Power Inc.
AB10: Centre Wellington Hydro Ltd.
AB11: Chapleau Public Utilities Corporation
AB12: COLLUS PowerStream Corp.
A13: Drop-down lists are shaded blue; Input cells are shaded green. | AB13: Cooperative Hydro Embrun Inc.
AB14: E.L.K. Energy Inc.
C15: Utility Name | D15: Halton Hills Hydro Inc. | AB15: Enersource Hydro Mississauga Inc.
AB16: Entegrus Powerlines Inc.
C17: Service Territory | D17: The Town of Halton Hills | AB17: EnWin Utilities Ltd.
AB18: Erie Thames Powerlines Corporation
C19: Assigned EB Number | D19: EB-2015-0074 | AB19: Espanola Regional Hydro Distribution Corporation
AB20: Essex Powerlines Corporation
C21: Name and Title | D21: David J. Smelsky, Chief Financial Officer | AB21: Festival Hydro Inc.
AB22: Fort Albany Power Corporation
C23: Phone Number | D23: 519-853-3700 extension 208 | AB23: Fort Frances Power Corporation
AB24: Greater Sudbury Hydro Inc.
C25: Email Address | D25: dsmelsky@haltonhillshydro.com | AB25: Grimsby Power Inc.
AB26: Guelph Hydro Electric Systems Inc.
C27: Date | AB27: Haldimand County Hydro Inc.
AB28: Halton Hills Hydro Inc.
C29: Last COS Re-based Year | D29: 2012 | AB29: Hearst Power Distribution Company Limited
AB30: Horizon Utilities Corporation
AB31: Hydro 2000 Inc.
AB32: Hydro Hawkesbury Inc.
AB33: Hydro One Brampton Networks Inc.
AB34: Hydro One Networks Inc.
AB35: Hydro One Remote Communities Inc.
AB36: Hydro Ottawa Limited
AB37: Innpower Corporation
AB38: Kashechewan Power Corporation
AB39: Kenora Hydro Electric Corporation Ltd.
AB40: Kingston Hydro Corporation
AB41: Kitchener-Wilmot Hydro Inc.
AB42: Lakefront Utilities Inc.
AB43: Lakeland Power Distribution Ltd.
AB44: London Hydro Inc.
AB45: Midland Power Utility Corporation
AB46: Milton Hydro Distribution Inc.
AB47: Newmarket-Tay Power Distribution Ltd.
AB48: Niagara Peninsula Energy Inc.
AB49: Niagara-on-the-Lake Hydro Inc.
AB50: Norfolk Power Distribution Inc.
AB51: North Bay Hydro Distribution Limited
AB52: Northern Ontario Wires Inc.
AB53: Oakville Hydro Electricity Distribution Inc.
AB54: Orangeville Hydro Limited
AB55: Orillia Power Distribution Corporation
AB56: Oshawa PUC Networks Inc.
AB57: Ottawa River Power Corporation
AB58: Peterborough Distribution Incorporated
AB59: PowerStream Inc.
AB60: PUC Distribution Inc.
AB61: Renfrew Hydro Inc.
AB62: Rideau St. Lawrence Distribution Inc.
AB63: Sioux Lookout Hydro Inc.
AB64: St. Thomas Energy Inc.
AB65: Thunder Bay Hydro Electricity Distribution Inc.
AB66: Tillsonburg Hydro Inc.
AB67: Toronto Hydro-Electric System Limited
AB68: Veridian Connections Inc.
AB69: Wasaga Distribution Inc.
AB70: Waterloo North Hydro Inc.
AB71: Welland Hydro-Electric System Corp.
AB72: Wellington North Power Inc.
AB73: West Coast Huron Energy Inc.
AB74: Westario Power Inc.
AB75: Whitby Hydro Electric Corporation
AB76: Woodstock Hydro Services Inc.

Sheet 2. Table of Contents
D20: 1. Info | I20: 6. Historical Wholesale
D22: 2. Table of Contents | I22: 7. Current Wholesale
D24: 3. Rate Classes | I24: 8. Forecast Wholesale
D26: 4. RRR Data | I26: 9. RTSR Rates to Forecast
D28: 5. UTRs and Sub-Transmission

Sheet 3. Rate Classes
C13: 1. Select the appropriate rate classes that appear on your most recent Board-Approved Tariff of Rates and Charges. 2. Enter the RTS Network and Connection Rate as it appears on the Tariff of Rates and Charges
C15: Rate Class | E15: Unit | G15: RTSR-Network | I15: RTSR-Connection
C17: Residential - Time of Use | E17: kWh | G17: 0.0074 | I17: 0.0051 | L17: =IF(OR(ISBLANK(C17), ISERROR(FIND("Choose", C17))=FALSE), 0, 1) -> 1 | M17: ="C" & ROW(C17) -> C17 | N17: =IF(OR(C17="General Service Intermediate Rate Class 1,000 To 4,999 kW (formerly General Service > 50 kW Customers)", C17="General Service Intermediate Rate Class 1,000 To 4,999 kW (formerly Large Use Customers)"), "x", "") ->  | W17: Choose Rate Class
C18: General Service Less Than 50 kW | E18: kWh | G18: 0.0066 | I18: 0.0048 | L18: 1 | M18: C18 | N18: =IF(OR(C18="General Service Intermediate Rate Class 1,000 To 4,999 kW (formerly General Service > 50 kW Customers)", C18="General Service Intermediate Rate Class 1,000 To 4,999 kW (formerly Large Use Customers)"), "x", "") ->  | W18: Residential
C19: General Service 50 to 999 kW | E19: kW | G19: 2.8647 | I19: 2.0574 | L19: 1 | M19: C19 | W19: Residential Regular
C20: General Service 1,000 to 4,999 kW | E20: kW | G20: 2.8647 | I20: 2.0574 | L20: 1 | M20: C20 | W20: Residential Urban
C21: Unmetered Scattered Load | E21: kWh | G21: 0.0066 | I21: 0.0048 | L21: 1 | M21: C21 | W21: Residential Urban Year-Round
C22: Sentinel Lighting | E22: kW | G22: 2.0437 | I22: 1.4811 | L22: 1 | M22: C22 | W22: Residential Suburban
C23: Street Lighting | E23: kW | G23: 2.0343 | I23: 1.4509 | L23: 1 | M23: C23 | W23: Residential Suburban Seasonal
C24: Choose Rate Class | L24: 0 | M24: C24 | W24: Residential Suburban Year Round
C25: Choose Rate Class | L25: 0 | M25: C25 | W25: Residential - Time of Use
C26: Choose Rate Class | L26: 0 | M26: C26 | W26: Residential - Hensall
C27: Choose Rate Class | L27: 0 | M27: C27 | W27: Residential – High Density [R1]
C28: Choose Rate Class | L28: 0 | M28: C28 | W28: Residential – Normal Density [R2]
C29: Choose Rate Class | L29: 0 | M29: C29 | W29: Seasonal Residential – High Density [R3]
C30: Choose Rate Class | L30: 0 | M30: C30 | W30: Seasonal Residential – Normal Density [R4]
C31: Choose Rate Class | L31: 0 | M31: C31 | W31: Residential – Urban [UR]
C32: Choose Rate Class | L32: 0 | M32: C32 | W32: General Service Less Than 50 kW
C33: Choose Rate Class | L33: 0 | M33: C33 | W33: General Service Less Than 50 kW – Single Phase energy-billed [G1]
C34: Choose Rate Class | L34: 0 | M34: C34 | W34: General Service Less Than 50 kW – Three Phase energy-billed [G3]
C35: Choose Rate Class | L35: 0 | M35: C35 | W35: General Service Less Than 50 kW – Transmission Class energy-billed [T]
C36: Choose Rate Class | L36: 0 | M36: C36 | W36: General Service Less Than 50 kW – Urban energy-billed [UG]
C37: Choose Rate Class | L37: 0 | M37: C37 | W37: Westport Sewage Treatment Plant
C38: Choose Rate Class | L38: 0 | M38: C38 | W38: Small Commercial and USL - per meter
N39: =COUNTIF(N17:N38, "x") -> 0 | W39: Small Commercial and USL - per connection
W40: Farms – Single Phase energy-billed [F1]
W41: General Service 50 to 499 kW
W42: General Service 50 to 699 kW
W43: General Service 50 to 999 kW
W44: General Service 50 to 999 kW - Interval Metered
W45: General Service 50 to 1,000 kW
W46: General Service 50 to 1,000 kW - Interval Meters
W47: General Service 50 to 1,000 kW - Non Interval Meters
W48: General Service 50 to 1,499 kW
W49: General Service 50 to 1,499 kW - Interval Metered
W50: General Service 50 to 2,499 kW
W51: General Service 50 to 2,999 kW
W52: General Service 50 to 2,999 kW - Time of Use
W53: General Service 50 to 4,999 kW
W54: General Service 50 to 4,999 kW – Interval Metered
W55: General Service 50 to 4,999 kW - Time of Use
W56: General Service 50 to 4,999 kW (CoGeneration)
W57: General Service 50 to 4,999 kW (formerly Time of Use)
W58: General Service 500 to 4,999 kW
W59: General Service 700 to 4,999 kW
W60: General Service 1,000 to 2,999 kW
W61: General Service 1,000 to 4,999 kW
W62: General Service 1,000 to 4,999 kW - Interval Meters
W63: General Service 1,000 To 4,999 kW (co-generation)
W64: General Service Greater Than 1,000 kW
W65: General Service Intermediate Rate Class 1,000 To 4,999 kW (formerly Large Use Customers)
W66: General Service Intermediate Rate Class 1,000 To 4,999 kW (formerly General Service > 50 kW Customers)
W67: General Service 1,500 to 4,999 kW
W68: General Service Equal To Or Greater Than 1,500 kW
W69: General Service Equal To Or Greater Than 1,500 kW - Interval Metered
W70: General Service Intermediate 1,000 To 4,999 kW
W71: General Service 2,500 to 4,999 kW
W72: General Service 3,000 to 4,999 kW
W73: General Service 3,000 to 4,999 kW - Interval Metered
W74: General Service 3,000 to 4,999 kW - Intermediate Use
W75: General Service 3,000 to 4,999 kW - Time of Use
W76: Intermediate With Self Generation
W77: General Service - Commercial
W78: General Service - Institutional
W79: Farms – Three Phase energy-billed [F3]
W80: Large Use
W81: Large Use - Regular
W82: Large Use > 5000 kW
W83: Large Use - 3TS
W84: Large Use - Ford Annex
W85: Unmetered Scattered Load
W86: Sentinel Lighting
W87: Street Lighting
W88: Embedded Distributor
W89: Low Voltage Wheeling Charge Rate
W90: Stand-By
W91: Standby Power
W92: Standby Power – INTERIM APPROVAL
W93: Standby Power - APPROVED ON AN INTERIM BASIS
W94: Standby - General Service 50 - 1,000 kW
W95: Standby Power General Service 50 to 1,499 kW
W96: Standby - General Service 1,000 - 5,000 kW
W97: Standby Power General Service 1,500 to 4,999 kW
W98: Standby - Large Use
W99: Standby Power General Service Large Use
W100: Standby Distribution Service

Sheet 4. RRR Data
B15: Rate Class | C15: Rate Description | D15: Unit | E15: Rate | F15: Non-Loss Adjusted Metered kWh | G15: Non-Loss Adjusted Metered kW | H15: Applicable Loss Factor eg: (1.0325) | I15: Loss Adjusted Billed kWh
B17: Residential - Time of Use | C17: RTSR - Network | D17: kWh | E17: 0.0074 | F17: 204505080 | G17: 0 | H17: 1.0602 | I17: =F17*H17 -> 216816285.8
B18: Residential - Time of Use | C18: RTSR - Connection | D18: kWh | E18: 0.0051 | F18: 204505080 | G18: 0 | H18: 1.0602 | I18: =F18*H18 -> 216816285.8
B19: General Service Less Than 50 kW | C19: RTSR - Network | D19: kWh | E19: 0.0066 | F19: 51530040.76 | G19: 0 | H19: 1.0602 | I19: =F19*H19 -> 54632149.21
B20: General Service Less Than 50 kW | C20: RTSR - Connection | D20: kWh | E20: 0.0048 | F20: 51530040.76 | G20: 0 | H20: 1.0602 | I20: =F20*H20 -> 54632149.21
B21: General Service 50 to 999 kW | C21: RTSR - Network | D21: kW | E21: 2.8647 | F21: 133375026.6 | G21: 380752.12
B22: General Service 50 to 999 kW | C22: RTSR - Connection | D22: kW | E22: 2.0574 | F22: 133375026.6 | G22: 380752.12
B23: General Service 1,000 to 4,999 kW | C23: RTSR - Network | D23: kW | E23: 2.8647 | F23: 116678000 | G23: 307814.97
B24: General Service 1,000 to 4,999 kW | C24: RTSR - Connection | D24: kW | E24: 2.0574 | F24: 116678000 | G24: 307814.97
B25: Unmetered Scattered Load | C25: RTSR - Network | D25: kWh | E25: 0.0066 | F25: 923011.21 | G25: 0 | H25: 1.0602 | I25: =F25*H25 -> 978576.4848
B26: Unmetered Scattered Load | C26: RTSR - Connection | D26: kWh | E26: 0.0048 | F26: 923011.21 | G26: 0 | H26: 1.0602 | I26: =F26*H26 -> 978576.4848
B27: Sentinel Lighting | C27: RTSR - Network | D27: kW | E27: 2.0437 | F27: 279260.1 | G27: 671.39
B28: Sentinel Lighting | C28: RTSR - Connection | D28: kW | E28: 1.4811 | F28: 279260.1 | G28: 671.39
B29: Street Lighting | C29: RTSR - Network | D29: kW | E29: 2.0343 | F29: 2782603.35 | G29: 7764.21
B30: Street Lighting | C30: RTSR - Connection | D30: kW | E30: 1.4509 | F30: 2782603.35 | G30: 7764.21

Sheet 5. UTRs and Sub-Transmission
B18: Uniform Transmission Rates | C18: Unit | E18: Effective January 1, 2014 | G18: Effective January 1, 2015 | I18: Effective January 1, 2016
B20: Rate Description | E20: Rate | G20: Rate | I20: Rate
B22: Network Service Rate | C22: kW | E22: 3.82 | G22: 3.78 | I22: 3.78
B24: Line Connection Service Rate | C24: kW | E24: 0.82 | G24: 0.86 | I24: 0.86
B26: Transformation Connection Service Rate | C26: kW | E26: 1.98 | G26: 2 | I26: 2
B29: Hydro One Sub-Transmission Rates | C29: Unit | E29: Effective January 1, 2014 to April 30, 2015 | G29: Effective May 1, 2015 | I29: Effective January 1, 2016
B33: Rate Description | E33: Rate | G33: Rate | I33: Rate
B35: Network Service Rate | C35: kW | E35: 3.23 | G35: 3.4121 | I35: 3.4121
B37: Line Connection Service Rate | C37: kW | E37: 0.65 | G37: 0.7879 | I37: 0.7879
B39: Transformation Connection Service Rate | C39: kW | E39: 1.62 | G39: 1.8018 | I39: 1.8018
B41: Both Line and Transformation Connection Service Rate | C41: kW | E41: =SUM(E39,E37) -> 2.27 | G41: =SUM(G39,G37) -> 2.5897 | I41: =SUM(I39,I37) -> 2.5897
B44: If needed, add extra host here. (I) | C44: Unit | E44: Effective January 1, 2014 | G44: Effective January 1, 2015 | I44: Effective January 1, 2016
B48: Rate Description | E48: Rate | G48: Rate | I48: Rate
B50: Network Service Rate | C50: kW
B52: Line Connection Service Rate | C52: kW
B54: Transformation Connection Service Rate | C54: kW
B56: Both Line and Transformation Connection Service Rate | C56: kW | E56: =SUM(E52,E54) -> 0 | G56: =SUM(G52,G54) -> 0 | I56: =I54+I52 -> 0
B59: If needed, add extra host here. (II) | C59: Unit | E59: Effective January 1, 2014 | G59: Effective January 1, 2015 | I59: Effective January 1, 2016
B63: Rate Description | E63: Rate | G63: Rate | I63: Rate
B65: Network Service Rate | C65: kW
B67: Line Connection Service Rate | C67: kW
B69: Transformation Connection Service Rate | C69: kW
B71: Both Line and Transformation Connection Service Rate | C71: kW | E71: =SUM(E67,E69) -> 0 | G71: =SUM(G67,G69) -> 0 | I71: =I69+I67 -> 0
B75: Hydro One Sub-Transmission Rate Rider 9A | C75: Unit | E75: Effective January 1, 2014 | G75: Effective January 1, 2015 | I75: Effective January 1, 2016
B77: Rate Description | E77: Rate | G77: Rate | I77: Rate
B79: RSVA Transmission network – 4714 – which affects 1584 | C79: kW | E79: 0.1465 | G79: 0 | I79: 0
B81: RSVA Transmission connection – 4716 – which affects 1586 | C81: kW | E81: 0.0667 | G81: 0 | I81: 0
B83: RSVA LV – 4750 – which affects 1550 | C83: kW | E83: 0.0475 | G83: 0 | I83: 0
B85: RARA 1 – 2252 – which affects 1590 | C85: kW | E85: 0.0419 | G85: 0 | I85: 0
B87: RARA 1 – 2252 – which affects 1590 (2008) | C87: kW | E87: -0.027 | G87: 0 | I87: 0
B89: RARA 1 – 2252 – which affects 1590 (2009) | C89: kW | E89: -0.0006 | G89: 0 | I89: 0
B91: Hydro One Sub-Transmission Rate Rider 9A | C91: kW | E91: 0.275 | G91: 0 | I91: =SUM(I79:I89) -> 0
E94: Historical 2014 | G94: Current 2015 | I94: Forecast 2016
B95: Low Voltage Switchgear Credit (if applicable, enter as a negative value) | C95: $

Sheet 6. Historical Wholesale
B21: IESO | D21: Network | H21: Line Connection | L21: Transformation Connection | P21: Total Line
B22: Month | D22: Units Billed | E22: Rate | F22: Amount | H22: Units Billed | I22: Rate | J22: Amount | L22: Units Billed | M22: Rate | N22: Amount | P22: Amount
B24: January | D24: 15294 | E24: 3.82 | F24: 58423.08 | H24: 17993 | I24: 0.82 | J24: 14754.26 | L24: 17993 | M24: 1.98 | N24: 35626.14 | P24: =J24+N24 -> 50380.4
B25: February | D25: 9725 | E25: 3.82 | F25: 37149.5 | H25: 10384 | I25: 0.82 | J25: 8514.88 | L25: 10384 | M25: 1.98 | N25: 20560.32 | P25: 29075.2
B26: March | D26: 10894 | E26: 3.82 | F26: 41615.08 | H26: 13418 | I26: 0.82 | J26: 11002.76 | L26: 13418 | M26: 1.98 | N26: 26567.64 | P26: 37570.4
B27: April | D27: 12725 | E27: 3.82 | F27: 48609.5 | H27: 13017 | I27: 0.82 | J27: 10673.94 | L27: 13017 | M27: 1.98 | N27: 25773.66 | P27: 36447.6
B28: May | D28: 14175 | E28: 3.82 | F28: 54148.5 | H28: 14175 | I28: 0.82 | J28: 11623.5 | L28: 14175 | M28: 1.98 | N28: 28066.5 | P28: 39690
B29: June | D29: 12762 | E29: 3.82 | F29: 48750.84 | H29: 15014 | I29: 0.82 | J29: 12311.48 | L29: 15014 | M29: 1.98 | N29: 29727.72 | P29: 42039.2
B30: July | D30: 16037 | E30: 3.82 | F30: 61261.34 | H30: 16037 | I30: 0.82 | J30: 13150.34 | L30: 16037 | M30: 1.98 | N30: 31753.26 | P30: 44903.6
B31: August | D31: 16835 | E31: 3.82 | F31: 64309.7 | H31: 16924 | I31: 0.82 | J31: 13877.68 | L31: 16924 | M31: 1.98 | N31: 33509.52 | P31: 47387.2
B32: September | D32: 15431 | E32: 3.82 | F32: 58946.42 | H32: 16431 | I32: 0.82 | J32: 13473.42 | L32: 16431 | M32: 1.98 | N32: 32533.38 | P32: 46006.8
B33: October | D33: 11298 | E33: 3.82 | F33: 43158.36 | H33: 13877 | I33: 0.82 | J33: 11379.14 | L33: 13877 | M33: 1.98 | N33: 27476.46 | P33: 38855.6
B34: November | D34: 19722 | E34: 3.82 | F34: 75338.04 | H34: 20631 | I34: 0.82 | J34: 16917.42 | L34: 20631 | M34: 1.98 | N34: 40849.38 | P34: 57766.8
B35: December | D35: 10123 | E35: 3.82 | F35: 38669.86 | H35: 10739 | I35: 0.82 | J35: 8805.98 | L35: 10739 | M35: 1.98 | N35: 21263.22 | P35: 30069.2
B37: Total | D37: =SUM(D24:D35) -> 165021 | E37: =IF(D37<>0,F37/D37,0) -> 3.82 | F37: =SUM(F24:F35) -> 630380.22 | H37: =SUM(H24:H35) -> 178640 | I37: =IF(H37<>0,J37/H37,0) -> 0.82 | J37: =SUM(J24:J35) -> 146484.8 | L37: =SUM(L24:L35) -> 178640 | M37: =IF(L37<>0,N37/L37,0) -> 1.98 | N37: =SUM(N24:N35) -> 353707.2 | P37: =SUM(P24:P35) -> 500192
B39: Hydro One | D39: Network | H39: Line Connection | L39: Transformation Connection | P39: Total Line
B41: Month | D41: Units Billed | E41: Rate | F41: Amount | H41: Units Billed | I41: Rate | J41: Amount | L41: Units Billed | M41: Rate | N41: Amount | P41: Amount
B43: January | D43: 78647.39 | E43: =IF(D43<>0,F43/D43,0) -> 3.22999975 | F43: 254031.05 | H43: 79485.23 | I43: =IF(H43<>0,J43/H43,0) -> 0.65 | J43: 51665.3995 | L43: 79485.23 | M43: =IF(L43<>0,N43/L43,0) -> 1.62 | N43: 128766.0726 | P43: =J43+N43 -> 180431.4721
B44: February | D44: 75458.5 | E44: =IF(D44<>0,F44/D44,0) -> 3.229999934 | F44: 243730.95 | H44: 78463.07 | I44: =IF(H44<>0,J44/H44,0) -> 0.65 | J44: 51000.9955 | L44: 78463.07 | M44: =IF(L44<>0,N44/L44,0) -> 1.62 | N44: 127110.1734 | P44: 178111.1689
B45: March | D45: 65754.19 | E45: 3.229999944 | F45: 212386.03 | H45: 70612.53 | I45: 0.65 | J45: 45898.1445 | L45: 70612.53 | M45: 1.62 | N45: 114392.2986 | P45: 160290.4431
B46: April | D46: 61202.39 | E46: 3.230000168 | F46: 197683.73 | H46: 65816.78 | I46: 0.65 | J46: 42780.907 | L46: 65816.78 | M46: 1.62 | N46: 106623.1836 | P46: 149404.0906
B47: May | D47: 70816.44 | E47: 3.230000407 | F47: 228737.13 | H47: 71634.37 | I47: 0.65 | J47: 46562.3405 | L47: 71634.37 | M47: 1.62 | N47: 116047.6794 | P47: 162610.0199
B48: June | D48: 84804.39 | E48: 3.22999965 | F48: 273918.15 | H48: 84804.39 | I48: 0.65 | J48: 55122.8535 | L48: 84804.39 | M48: 1.62 | N48: 137383.1118 | P48: 192505.9653
B49: July | D49: 84824.7 | E49: 3.230000106 | F49: 273983.79 | H49: 84824.7 | I49: 0.65 | J49: 55136.055 | L49: 84824.7 | M49: 1.62 | N49: 137416.014 | P49: 192552.069
B50: August | D50: 84686.07 | E50: 3.22999981 | F50: 273535.99 | H50: 84686.07 | I50: 0.65 | J50: 55045.9455 | L50: 84686.07 | M50: 1.62 | N50: 137191.4334 | P50: 192237.3789
B51: September | D51: 63552.46 | E51: 3.230000538 | F51: 205274.48 | H51: 66333.26 | I51: 0.65 | J51: 43116.619 | L51: 66333.26 | M51: 1.62 | N51: 107459.8812 | P51: 150576.5002
B52: October | D52: 61670.53 | E52: 3.230000131 | F52: 199195.82 | H52: 63882.16 | I52: 0.65 | J52: 41523.404 | L52: 63882.16 | M52: 1.62 | N52: 103489.0992 | P52: 145012.5032
B53: November | D53: 76124.12 | E53: 3.230000032 | F53: 245880.91 | H53: 77644.15 | I53: 0.65 | J53: 50468.6975 | L53: 77644.15 | M53: 1.62 | N53: 125783.523 | P53: 176252.2205
B54: December | D54: 80555.53 | E54: 3.229999976 | F54: 260194.36 | H54: 82435.18 | I54: 0.65 | J54: 53582.867 | L54: 82435.18 | M54: 1.62 | N54: 133544.9916 | P54: 187127.8586
B56: Total | D56: =SUM(D43:D54) -> 888096.71 | E56: =IF(D56<>0,F56/D56,0) -> 3.230000019 | F56: =SUM(F43:F54) -> 2868552.39 | H56: =SUM(H43:H54) -> 910621.89 | I56: =IF(H56<>0,J56/H56,0) -> 0.65 | J56: =SUM(J43:J54) -> 591904.2285 | L56: =SUM(L43:L54) -> 910621.89 | M56: =IF(L56<>0,N56/L56,0) -> 1.62 | N56: =SUM(N43:N54) -> 1475207.462 | P56: =SUM(P43:P54) -> 2067111.69
B58: Add Extra Host Here (I) | D58: Network | H58: Line Connection | L58: Transformation Connection | P58: Total Line
B59: (if needed)
B60: Month | D60: Units Billed | E60: Rate | F60: Amount | H60: Units Billed | I60: Rate | J60: Amount | L60: Units Billed | M60: Rate | N60: Amount | P60: Amount
B62: January | E62: =IF(D62<>0,F62/D62,0) -> 0 | I62: =IF(H62<>0,J62/H62,0) -> 0 | M62: =IF(L62<>0,N62/L62,0) -> 0 | P62: =J62+N62 -> 0
B63: February | E63: 0 | I63: 0 | M63: 0 | P63: 0
B64: March | E64: 0 | I64: 0 | M64: 0 | P64: 0
B65: April | E65: 0 | I65: 0 | M65: 0 | P65: 0
B66: May | E66: 0 | I66: 0 | M66: 0 | P66: 0
B67: June | E67: 0 | I67: 0 | M67: 0 | P67: 0
B68: July | E68: 0 | I68: 0 | M68: 0 | P68: 0
B69: August | E69: 0 | I69: 0 | M69: 0 | P69: 0
B70: September | E70: 0 | I70: 0 | M70: 0 | P70: 0
B71: October | E71: 0 | I71: 0 | M71: 0 | P71: 0
B72: November | E72: 0 | I72: 0 | M72: 0 | P72: 0
B73: December | E73: 0 | I73: 0 | M73: 0 | P73: 0
B75: Total | D75: =SUM(D62:D73) -> 0 | E75: =IF(D75<>0,F75/D75,0) -> 0 | F75: =SUM(F62:F73) -> 0 | H75: =SUM(H62:H73) -> 0 | I75: =IF(H75<>0,J75/H75,0) -> 0 | J75: =SUM(J62:J73) -> 0 | L75: =SUM(L62:L73) -> 0 | M75: =IF(L75<>0,N75/L75,0) -> 0 | N75: =SUM(N62:N73) -> 0 | P75: =SUM(P62:P73) -> 0
B77: Add Extra Host Here (II) | D77: Network | H77: Line Connection | L77: Transformation Connection | P77: Total Line
B78: (if needed)
B79: Month | D79: Units Billed | E79: Rate | F79: Amount | H79: Units Billed | I79: Rate | J79: Amount | L79: Units Billed | M79: Rate | N79: Amount | P79: Amount
B81: January | E81: =IF(D81<>0,F81/D81,0) -> 0 | I81: =IF(H81<>0,J81/H81,0) -> 0 | M81: =IF(L81<>0,N81/L81,0) -> 0 | P81: =J81+N81 -> 0
B82: February | E82: 0 | I82: 0 | M82: 0 | P82: 0
B83: March | E83: 0 | I83: 0 | M83: 0 | P83: 0
B84: April | E84: 0 | I84: 0 | M84: 0 | P84: 0
B85: May | E85: 0 | I85: 0 | M85: 0 | P85: 0
B86: June | E86: 0 | I86: 0 | M86: 0 | P86: 0
B87: July | E87: 0 | I87: 0 | M87: 0 | P87: 0
B88: August | E88: 0 | I88: 0 | M88: 0 | P88: 0
B89: September | E89: 0 | I89: 0 | M89: 0 | P89: 0
B90: October | E90: 0 | I90: 0 | M90: 0 | P90: 0
B91: November | E91: 0 | I91: 0 | M91: 0 | P91: 0
B92: December | E92: 0 | I92: 0 | M92: 0 | P92: 0
B94: Total | D94: =SUM(D81:D92) -> 0 | E94: =IF(D94<>0,F94/D94,0) -> 0 | F94: =SUM(F81:F92) -> 0 | H94: =SUM(H81:H92) -> 0 | I94: =IF(H94<>0,J94/H94,0) -> 0 | J94: =SUM(J81:J92) -> 0 | L94: =SUM(L81:L92) -> 0 | M94: =IF(L94<>0,N94/L94,0) -> 0 | N94: =SUM(N81:N92) -> 0 | P94: =SUM(P81:P92) -> 0
B96: Total | D96: Network | H96: Line Connection | L96: Transformation Connection | P96: Total Line
B98: Month | D98: Units Billed | E98: Rate | F98: Amount | H98: Units Billed | I98: Rate | J98: Amount | L98: Units Billed | M98: Rate | N98: Amount | P98: Amount
B100: January | D100: =D24+D43+D62+D81 -> 93941.39 | E100: =IF(D100<>0,F100/D100,0) -> 3.326053936 | F100: =F24+F43+F62+F81 -> 312454.13 | H100: =H24+H43+H62+H81 -> 97478.23 | I100: =IF(H100<>0,J100/H100,0) -> 0.6813794167 | J100: =J24+J43+J62+J81 -> 66419.6595 | L100: =L24+L43+L62+L81 -> 97478.23 | M100: =IF(L100<>0,N100/L100,0) -> 1.68645053 | N100: =N24+N43+N62+N81 -> 164392.2126 | P100: =J100+N100 -> 230811.8721
B101: February | D101: =D25+D44+D63+D82 -> 85183.5 | E101: 3.297357469 | F101: =F25+F44+F63+F82 -> 280880.45 | H101: =H25+H44+H63+H82 -> 88847.07 | I101: 0.6698687475 | J101: =J25+J44+J63+J82 -> 59515.8755 | L101: =L25+L44+L63+L82 -> 88847.07 | M101: 1.662074995 | N101: =N25+N44+N63+N82 -> 147670.4934 | P101: 207186.3689
B102: March | D102: 76648.19 | E102: 3.313856596 | F102: 254001.11 | H102: 84030.53 | I102: 0.6771456101 | J102: 56900.9045 | L102: 84030.53 | M102: 1.677484821 | N102: 140959.9386 | P102: 197860.8431
B103: April | D103: 73927.39 | E103: 3.331555869 | F103: 246293.23 | H103: 78833.78 | I103: 0.6780703272 | J103: 53454.847 | L103: 78833.78 | M103: 1.679443046 | N103: 132396.8436 | P103: 185851.6906
B104: May | D104: 84991.44 | E104: 3.328401425 | F104: 282885.63 | H104: 85809.37 | I104: 0.6780825975 | J104: 58185.8405 | L104: 85809.37 | M104: 1.67946903 | N104: 144114.1794 | P104: 202300.0199
B105: June | D105: 97566.39 | E105: 3.307173608 | F105: 322668.99 | H105: 99818.39 | I105: 0.6755702381 | J105: 67434.3335 | L105: 99818.39 | M105: 1.67414874 | N105: 167110.8318 | P105: 234545.1653
B106: July | D106: 100861.7 | E106: 3.323810029 | F106: 335245.13 | H106: 100861.7 | I106: 0.6770299826 | J106: 68286.395 | L106: 100861.7 | M106: 1.677239963 | N106: 169169.274 | P106: 237455.669
B107: August | D107: 101521.07 | E107: 3.327838152 | F107: 337845.69 | H107: 101610.07 | I107: 0.6783149101 | J107: 68923.6255 | L107: 101610.07 | M107: 1.679960986 | N107: 170700.9534 | P107: 239624.5789
B108: September | D108: 78983.46 | E108: 3.345268744 | F108: 264220.9 | H108: 82764.26 | I108: 0.6837497127 | J108: 56590.039 | L108: 82764.26 | M108: 1.69146998 | N108: 139993.2612 | P108: 196583.3002
B109: October | D109: 72968.53 | E109: 3.321352095 | F109: 242354.18 | H109: 77759.16 | I109: 0.6803384193 | J109: 52902.544 | L109: 77759.16 | M109: 1.684246064 | N109: 130965.5592 | P109: 183868.1032
B110: November | D110: 95846.12 | E110: 3.351402748 | F110: 321218.95 | H110: 98275.15 | I110: 0.6856882691 | J110: 67386.1175 | L110: 98275.15 | M110: 1.695575158 | N110: 166632.903 | P110: 234019.0205
B111: December | D111: 90678.53 | E111: 3.295865295 | F111: 298864.22 | H111: 93174.18 | I111: 0.6695937329 | J111: 62388.847 | L111: 93174.18 | M111: 1.661492611 | N111: 154808.2116 | P111: 217197.0586
B113: Total | D113: =SUM(D100:D111) -> 1053117.71 | E113: =IF(D113<>0,F113/D113,0) -> 3.32245159 | F113: =SUM(F100:F111) -> 3498932.61 | H113: =SUM(H100:H111) -> 1089261.89 | I113: =IF(H113<>0,J113/H113,0) -> 0.6778801639 | J113: =SUM(J100:J111) -> 738389.0285 | L113: =SUM(L100:L111) -> 1089261.89 | M113: =IF(L113<>0,N113/L113,0) -> 1.679040347 | N113: =SUM(N100:N111) -> 1828914.662 | P113: =SUM(P100:P111) -> 2567303.69
N115: Low Voltage Switchgear Credit (if applicable) | P115: ='5. UTRs and Sub-Transmission'!E95 -> 0
N117: Total including deduction for Low Voltage Switchgear Credit | P117: =P113+P115 -> 2567303.69

Sheet 7. Current Wholesale
B13: The purpose of this sheet is to calculate the expected billing when current 2015 Uniform Transmission Rates are applied against historical 2014 transmission units.
B20: IESO | D20: Network | H20: Line Connection | L20: Transformation Connection | P20: Total Line
B22: Month | D22: Units Billed | E22: Rate | F22: Amount | H22: Units Billed | I22: Rate | J22: Amount | L22: Units Billed | M22: Rate | N22: Amount | P22: Amount
B24: January | D24: ='6. Historical Wholesale'!D24 -> 15294 | E24: ='5. UTRs and Sub-Transmission'!G22 -> 3.78 | F24: =D24*E24 -> 57811.32 | H24: ='6. Historical Wholesale'!H24 -> 17993 | I24: ='5. UTRs and Sub-Transmission'!G24 -> 0.86 | J24: =H24*I24 -> 15473.98 | L24: ='6. Historical Wholesale'!L24 -> 17993 | M24: ='5. UTRs and Sub-Transmission'!G26 -> 2 | N24: =L24*M24 -> 35986 | P24: =J24+N24 -> 51459.98
B25: February | D25: ='6. Historical Wholesale'!D25 -> 9725 | E25: =E24 -> 3.78 | F25: =D25*E25 -> 36760.5 | H25: ='6. Historical Wholesale'!H25 -> 10384 | I25: =I24 -> 0.86 | J25: =H25*I25 -> 8930.24 | L25: ='6. Historical Wholesale'!L25 -> 10384 | M25: =M24 -> 2 | N25: =L25*M25 -> 20768 | P25: 29698.24
B26: March | D26: ='6. Historical Wholesale'!D26 -> 10894 | E26: =E25 -> 3.78 | F26: 41179.32 | H26: ='6. Historical Wholesale'!H26 -> 13418 | I26: =I25 -> 0.86 | J26: 11539.48 | L26: ='6. Historical Wholesale'!L26 -> 13418 | M26: =M25 -> 2 | N26: 26836 | P26: 38375.48
B27: April | D27: ='6. Historical Wholesale'!D27 -> 12725 | E27: 3.78 | F27: 48100.5 | H27: ='6. Historical Wholesale'!H27 -> 13017 | I27: 0.86 | J27: 11194.62 | L27: ='6. Historical Wholesale'!L27 -> 13017 | M27: 2 | N27: 26034 | P27: 37228.62
B28: May | D28: ='6. Historical Wholesale'!D28 -> 14175 | E28: 3.78 | F28: 53581.5 | H28: ='6. Historical Wholesale'!H28 -> 14175 | I28: 0.86 | J28: 12190.5 | L28: ='6. Historical Wholesale'!L28 -> 14175 | M28: 2 | N28: 28350 | P28: 40540.5
B29: June | D29: ='6. Historical Wholesale'!D29 -> 12762 | E29: 3.78 | F29: 48240.36 | H29: ='6. Historical Wholesale'!H29 -> 15014 | I29: 0.86 | J29: 12912.04 | L29: ='6. Historical Wholesale'!L29 -> 15014 | M29: 2 | N29: 30028 | P29: 42940.04
B30: July | D30: ='6. Historical Wholesale'!D30 -> 16037 | E30: 3.78 | F30: 60619.86 | H30: ='6. Historical Wholesale'!H30 -> 16037 | I30: 0.86 | J30: 13791.82 | L30: ='6. Historical Wholesale'!L30 -> 16037 | M30: 2 | N30: 32074 | P30: 45865.82
B31: August | D31: ='6. Historical Wholesale'!D31 -> 16835 | E31: 3.78 | F31: 63636.3 | H31: ='6. Historical Wholesale'!H31 -> 16924 | I31: 0.86 | J31: 14554.64 | L31: ='6. Historical Wholesale'!L31 -> 16924 | M31: 2 | N31: 33848 | P31: 48402.64
B32: September | D32: ='6. Historical Wholesale'!D32 -> 15431 | E32: 3.78 | F32: 58329.18 | H32: ='6. Historical Wholesale'!H32 -> 16431 | I32: 0.86 | J32: 14130.66 | L32: ='6. Historical Wholesale'!L32 -> 16431 | M32: 2 | N32: 32862 | P32: 46992.66
B33: October | D33: ='6. Historical Wholesale'!D33 -> 11298 | E33: 3.78 | F33: 42706.44 | H33: ='6. Historical Wholesale'!H33 -> 13877 | I33: 0.86 | J33: 11934.22 | L33: ='6. Historical Wholesale'!L33 -> 13877 | M33: 2 | N33: 27754 | P33: 39688.22
B34: November | D34: ='6. Historical Wholesale'!D34 -> 19722 | E34: 3.78 | F34: 74549.16 | H34: ='6. Historical Wholesale'!H34 -> 20631 | I34: 0.86 | J34: 17742.66 | L34: ='6. Historical Wholesale'!L34 -> 20631 | M34: 2 | N34: 41262 | P34: 59004.66
B35: December | D35: ='6. Historical Wholesale'!D35 -> 10123 | E35: 3.78 | F35: 38264.94 | H35: ='6. Historical Wholesale'!H35 -> 10739 | I35: 0.86 | J35: 9235.54 | L35: ='6. Historical Wholesale'!L35 -> 10739 | M35: 2 | N35: 21478 | P35: 30713.54
B37: Total | D37: =SUM(D24:D35) -> 165021 | E37: =IF(D37<>0,F37/D37,0) -> 3.78 | F37: =SUM(F24:F35) -> 623779.38 | H37: =SUM(H24:H35) -> 178640 | I37: =IF(H37<>0,J37/H37,0) -> 0.86 | J37: =SUM(J24:J35) -> 153630.4 | L37: =SUM(L24:L35) -> 178640 | M37: =IF(L37<>0,N37/L37,0) -> 2 | N37: =SUM(N24:N35) -> 357280 | P37: =SUM(P24:P35) -> 510910.4
B39: Hydro One | D39: Network | H39: Line Connection | L39: Transformation Connection | P39: Total Line
B41: Month | D41: Units Billed | E41: Rate | F41: Amount | H41: Units Billed | I41: Rate | J41: Amount | L41: Units Billed | M41: Rate | N41: Amount | P41: Amount
B43: January | D43: ='6. Historical Wholesale'!D43 -> 78647.39 | E43: ='5. UTRs and Sub-Transmission'!G35+'5. UTRs and Sub-Transmission'!G79 -> 3.4121 | F43: =D43*E43 -> 268352.7594 | H43: ='6. Historical Wholesale'!H43 -> 79485.23 | I43: ='5. UTRs and Sub-Transmission'!G37+'5. UTRs and Sub-Transmission'!G81 -> 0.7879 | J43: =H43*I43 -> 62626.41272 | L43: ='6. Historical Wholesale'!L43 -> 79485.23 | M43: ='5. UTRs and Sub-Transmission'!G39 -> 1.8018 | N43: =L43*M43 -> 143216.4874 | P43: =J43+N43 -> 205842.9001
B44: February | D44: ='6. Historical Wholesale'!D44 -> 75458.5 | E44: =E43 -> 3.4121 | F44: =D44*E44 -> 257471.9478 | H44: ='6. Historical Wholesale'!H44 -> 78463.07 | I44: =I43 -> 0.7879 | J44: =H44*I44 -> 61821.05285 | L44: ='6. Historical Wholesale'!L44 -> 78463.07 | M44: =M43 -> 1.8018 | N44: =L44*M44 -> 141374.7595 | P44: 203195.8124
B45: March | D45: ='6. Historical Wholesale'!D45 -> 65754.19 | E45: =E44 -> 3.4121 | F45: 224359.8717 | H45: ='6. Historical Wholesale'!H45 -> 70612.53 | I45: =I44 -> 0.7879 | J45: 55635.61239 | L45: ='6. Historical Wholesale'!L45 -> 70612.53 | M45: =M44 -> 1.8018 | N45: 127229.6566 | P45: 182865.2689
B46: April | D46: ='6. Historical Wholesale'!D46 -> 61202.39 | E46: 3.4121 | F46: 208828.6749 | H46: ='6. Historical Wholesale'!H46 -> 65816.78 | I46: 0.7879 | J46: 51857.04096 | L46: ='6. Historical Wholesale'!L46 -> 65816.78 | M46: =M45 -> 1.8018 | N46: 118588.6742 | P46: 170445.7152
B47: May | D47: ='6. Historical Wholesale'!D47 -> 70816.44 | E47: 3.4121 | F47: 241632.7749 | H47: ='6. Historical Wholesale'!H47 -> 71634.37 | I47: 0.7879 | J47: 56440.72012 | L47: ='6. Historical Wholesale'!L47 -> 71634.37 | M47: 1.8018 | N47: 129070.8079 | P47: 185511.528
B48: June | D48: ='6. Historical Wholesale'!D48 -> 84804.39 | E48: 3.4121 | F48: 289361.0591 | H48: ='6. Historical Wholesale'!H48 -> 84804.39 | I48: 0.7879 | J48: 66817.37888 | L48: ='6. Historical Wholesale'!L48 -> 84804.39 | M48: 1.8018 | N48: 152800.5499 | P48: 219617.9288
B49: July | D49: ='6. Historical Wholesale'!D49 -> 84824.7 | E49: 3.4121 | F49: 289430.3589 | H49: ='6. Historical Wholesale'!H49 -> 84824.7 | I49: 0.7879 | J49: 66833.38113 | L49: ='6. Historical Wholesale'!L49 -> 84824.7 | M49: 1.8018 | N49: 152837.1445 | P49: 219670.5256
B50: August | D50: ='6. Historical Wholesale'!D50 -> 84686.07 | E50: 3.4121 | F50: 288957.3394 | H50: ='6. Historical Wholesale'!H50 -> 84686.07 | I50: 0.7879 | J50: 66724.15455 | L50: ='6. Historical Wholesale'!L50 -> 84686.07 | M50: 1.8018 | N50: 152587.3609 | P50: 219311.5155
B51: September | D51: ='6. Historical Wholesale'!D51 -> 63552.46 | E51: 3.4121 | F51: 216847.3488 | H51: ='6. Historical Wholesale'!H51 -> 66333.26 | I51: 0.7879 | J51: 52263.97555 | L51: ='6. Historical Wholesale'!L51 -> 66333.26 | M51: 1.8018 | N51: 119519.2679 | P51: 171783.2434
B52: October | D52: ='6. Historical Wholesale'!D52 -> 61670.53 | E52: 3.4121 | F52: 210426.0154 | H52: ='6. Historical Wholesale'!H52 -> 63882.16 | I52: 0.7879 | J52: 50332.75386 | L52: ='6. Historical Wholesale'!L52 -> 63882.16 | M52: 1.8018 | N52: 115102.8759 | P52: 165435.6298
B53: November | D53: ='6. Historical Wholesale'!D53 -> 76124.12 | E53: 3.4121 | F53: 259743.1099 | H53: ='6. Historical Wholesale'!H53 -> 77644.15 | I53: 0.7879 | J53: 61175.82579 | L53: ='6. Historical Wholesale'!L53 -> 77644.15 | M53: 1.8018 | N53: 139899.2295 | P53: 201075.0553
B54: December | D54: ='6. Historical Wholesale'!D54 -> 80555.53 | E54: 3.4121 | F54: 274863.5239 | H54: ='6. Historical Wholesale'!H54 -> 82435.18 | I54: 0.7879 | J54: 64950.67832 | L54: ='6. Historical Wholesale'!L54 -> 82435.18 | M54: 1.8018 | N54: 148531.7073 | P54: 213482.3856
B56: Total | D56: =SUM(D43:D54) -> 888096.71 | E56: =IF(D56<>0,F56/D56,0) -> 3.4121 | F56: =SUM(F43:F54) -> 3030274.784 | H56: =SUM(H43:H54) -> 910621.89 | I56: =IF(H56<>0,J56/H56,0) -> 0.7879 | J56: =SUM(J43:J54) -> 717478.9871 | L56: =SUM(L43:L54) -> 910621.89 | M56: =IF(L56<>0,N56/L56,0) -> 1.8018 | N56: =SUM(N43:N54) -> 1640758.521 | P56: =SUM(P43:P54) -> 2358237.509
B58: ='6. Historical Wholesale'!B58 -> Add Extra Host Here (I) | D58: Network | H58: Line Connection | L58: Transformation Connection | P58: Total Line
B60: Month | D60: Units Billed | E60: Rate | F60: Amount | H60: Units Billed | I60: Rate | J60: Amount | L60: Units Billed | M60: Rate | N60: Amount | P60: Amount
B62: January | D62: ='6. Historical Wholesale'!D62 -> 0 | E62: ='5. UTRs and Sub-Transmission'!G50 -> 0 | F62: =D62*E62 -> 0 | H62: ='6. Historical Wholesale'!H62 -> 0 | I62: ='5. UTRs and Sub-Transmission'!G52 -> 0 | J62: =H62*I62 -> 0 | L62: ='6. Historical Wholesale'!L62 -> 0 | M62: ='5. UTRs and Sub-Transmission'!G54 -> 0 | N62: =L62*M62 -> 0 | P62: =J62+N62 -> 0
B63: February | D63: ='6. Historical Wholesale'!D63 -> 0 | E63: =E62 -> 0 | F63: =D63*E63 -> 0 | H63: ='6. Historical Wholesale'!H63 -> 0 | I63: =I62 -> 0 | J63: =H63*I63 -> 0 | L63: ='6. Historical Wholesale'!L63 -> 0 | M63: =M62 -> 0 | N63: =L63*M63 -> 0 | P63: 0
B64: March | D64: ='6. Historical Wholesale'!D64 -> 0 | E64: =E63 -> 0 | F64: 0 | H64: ='6. Historical Wholesale'!H64 -> 0 | I64: =I63 -> 0 | J64: 0 | L64: ='6. Historical Wholesale'!L64 -> 0 | M64: =M63 -> 0 | N64: 0 | P64: 0
B65: April | D65: ='6. Historical Wholesale'!D65 -> 0 | E65: 0 | F65: 0 | H65: ='6. Historical Wholesale'!H65 -> 0 | I65: 0 | J65: 0 | L65: ='6. Historical Wholesale'!L65 -> 0 | M65: =M64 -> 0 | N65: 0 | P65: 0
B66: May | D66: ='6. Historical Wholesale'!D66 -> 0 | E66: 0 | F66: 0 | H66: ='6. Historical Wholesale'!H66 -> 0 | I66: 0 | J66: 0 | L66: ='6. Historical Wholesale'!L66 -> 0 | M66: 0 | N66: 0 | P66: 0
B67: June | D67: ='6. Historical Wholesale'!D67 -> 0 | E67: 0 | F67: 0 | H67: ='6. Historical Wholesale'!H67 -> 0 | I67: 0 | J67: 0 | L67: ='6. Historical Wholesale'!L67 -> 0 | M67: 0 | N67: 0 | P67: 0
B68: July | D68: ='6. Historical Wholesale'!D68 -> 0 | E68: 0 | F68: 0 | H68: ='6. Historical Wholesale'!H68 -> 0 | I68: 0 | J68: 0 | L68: ='6. Historical Wholesale'!L68 -> 0 | M68: 0 | N68: 0 | P68: 0
B69: August | D69: ='6. Historical Wholesale'!D69 -> 0 | E69: 0 | F69: 0 | H69: ='6. Historical Wholesale'!H69 -> 0 | I69: 0 | J69: 0 | L69: ='6. Historical Wholesale'!L69 -> 0 | M69: 0 | N69: 0 | P69: 0
B70: September | D70: ='6. Historical Wholesale'!D70 -> 0 | E70: 0 | F70: 0 | H70: ='6. Historical Wholesale'!H70 -> 0 | I70: 0 | J70: 0 | L70: ='6. Historical Wholesale'!L70 -> 0 | M70: 0 | N70: 0 | P70: 0
B71: October | D71: ='6. Historical Wholesale'!D71 -> 0 | E71: 0 | F71: 0 | H71: ='6. Historical Wholesale'!H71 -> 0 | I71: 0 | J71: 0 | L71: ='6. Historical Wholesale'!L71 -> 0 | M71: 0 | N71: 0 | P71: 0
B72: November | D72: ='6. Historical Wholesale'!D72 -> 0 | E72: 0 | F72: 0 | H72: ='6. Historical Wholesale'!H72 -> 0 | I72: 0 | J72: 0 | L72: ='6. Historical Wholesale'!L72 -> 0 | M72: 0 | N72: 0 | P72: 0
B73: December | D73: ='6. Historical Wholesale'!D73 -> 0 | E73: 0 | F73: 0 | H73: ='6. Historical Wholesale'!H73 -> 0 | I73: 0 | J73: 0 | L73: ='6. Historical Wholesale'!L73 -> 0 | M73: 0 | N73: 0 | P73: 0
B75: Total | D75: =SUM(D62:D73) -> 0 | E75: =IF(D75<>0,F75/D75,0) -> 0 | F75: =SUM(F62:F73) -> 0 | H75: =SUM(H62:H73) -> 0 | I75: =IF(H75<>0,J75/H75,0) -> 0 | J75: =SUM(J62:J73) -> 0 | L75: =SUM(L62:L73) -> 0 | M75: =IF(L75<>0,N75/L75,0) -> 0 | N75: =SUM(N62:N73) -> 0 | P75: =SUM(P62:P73) -> 0
B77: ='6. Historical Wholesale'!B77 -> Add Extra Host Here (II) | D77: Network | H77: Line Connection | L77: Transformation Connection | P77: Total Line
B79: Month | D79: Units Billed | E79: Rate | F79: Amount | H79: Units Billed | I79: Rate | J79: Amount | L79: Units Billed | M79: Rate | N79: Amount | P79: Amount
B81: January | D81: ='6. Historical Wholesale'!D81 -> 0 | E81: ='5. UTRs and Sub-Transmission'!G65 -> 0 | F81: =D81*E81 -> 0 | H81: ='6. Historical Wholesale'!H81 -> 0 | I81: ='5. UTRs and Sub-Transmission'!G67 -> 0 | J81: =H81*I81 -> 0 | L81: ='6. Historical Wholesale'!L81 -> 0 | M81: ='5. UTRs and Sub-Transmission'!G69 -> 0 | N81: =L81*M81 -> 0 | P81: =J81+N81 -> 0
B82: February | D82: ='6. Historical Wholesale'!D82 -> 0 | E82: =E81 -> 0 | F82: =D82*E82 -> 0 | H82: ='6. Historical Wholesale'!H82 -> 0 | I82: =I81 -> 0 | J82: =H82*I82 -> 0 | L82: ='6. Historical Wholesale'!L82 -> 0 | M82: =M81 -> 0 | N82: =L82*M82 -> 0 | P82: 0
B83: March | D83: ='6. Historical Wholesale'!D83 -> 0 | E83: =E82 -> 0 | F83: 0 | H83: ='6. Historical Wholesale'!H83 -> 0 | I83: =I82 -> 0 | J83: 0 | L83: ='6. Historical Wholesale'!L83 -> 0 | M83: =M82 -> 0 | N83: 0 | P83: 0
B84: April | D84: ='6. Historical Wholesale'!D84 -> 0 | E84: 0 | F84: 0 | H84: ='6. Historical Wholesale'!H84 -> 0 | I84: 0 | J84: 0 | L84: ='6. Historical Wholesale'!L84 -> 0 | M84: =M83 -> 0 | N84: 0 | P84: 0
B85: May | D85: ='6. Historical Wholesale'!D85 -> 0 | E85: 0 | F85: 0 | H85: ='6. Historical Wholesale'!H85 -> 0 | I85: 0 | J85: 0 | L85: ='6. Historical Wholesale'!L85 -> 0 | M85: 0 | N85: 0 | P85: 0
B86: June | D86: ='6. Historical Wholesale'!D86 -> 0 | E86: 0 | F86: 0 | H86: ='6. Historical Wholesale'!H86 -> 0 | I86: 0 | J86: 0 | L86: ='6. Historical Wholesale'!L86 -> 0 | M86: 0 | N86: 0 | P86: 0
B87: July | D87: ='6. Historical Wholesale'!D87 -> 0 | E87: 0 | F87: 0 | H87: ='6. Historical Wholesale'!H87 -> 0 | I87: 0 | J87: 0 | L87: ='6. Historical Wholesale'!L87 -> 0 | M87: 0 | N87: 0 | P87: 0
B88: August | D88: ='6. Historical Wholesale'!D88 -> 0 | E88: 0 | F88: 0 | H88: ='6. Historical Wholesale'!H88 -> 0 | I88: 0 | J88: 0 | L88: ='6. Historical Wholesale'!L88 -> 0 | M88: 0 | N88: 0 | P88: 0
B89: September | D89: ='6. Historical Wholesale'!D89 -> 0 | E89: 0 | F89: 0 | H89: ='6. Historical Wholesale'!H89 -> 0 | I89: 0 | J89: 0 | L89: ='6. Historical Wholesale'!L89 -> 0 | M89: 0 | N89: 0 | P89: 0
B90: October | D90: ='6. Historical Wholesale'!D90 -> 0 | E90: 0 | F90: 0 | H90: ='6. Historical Wholesale'!H90 -> 0 | I90: 0 | J90: 0 | L90: ='6. Historical Wholesale'!L90 -> 0 | M90: 0 | N90: 0 | P90: 0
B91: November | D91: ='6. Historical Wholesale'!D91 -> 0 | E91: 0 | F91: 0 | H91: ='6. Historical Wholesale'!H91 -> 0 | I91: 0 | J91: 0 | L91: ='6. Historical Wholesale'!L91 -> 0 | M91: 0 | N91: 0 | P91: 0
B92: December | D92: ='6. Historical Wholesale'!D92 -> 0 | E92: 0 | F92: 0 | H92: ='6. Historical Wholesale'!H92 -> 0 | I92: 0 | J92: 0 | L92: ='6. Historical Wholesale'!L92 -> 0 | M92: 0 | N92: 0 | P92: 0
B94: Total | D94: =SUM(D81:D92) -> 0 | E94: =IF(D94<>0,F94/D94,0) -> 0 | F94: =SUM(F81:F92) -> 0 | H94: =SUM(H81:H92) -> 0 | I94: =IF(H94<>0,J94/H94,0) -> 0 | J94: =SUM(J81:J92) -> 0 | L94: =SUM(L81:L92) -> 0 | M94: =IF(L94<>0,N94/L94,0) -> 0 | N94: =SUM(N81:N92) -> 0 | P94: =SUM(P81:P92) -> 0
B96: Total | D96: Network | H96: Line Connection | L96: Transformation Connection | P96: Total Line
B98: Month | D98: Units Billed | E98: Rate | F98: Amount | H98: Units Billed | I98: Rate | J98: Amount | L98: Units Billed | M98: Rate | N98: Amount | P98: Amount
B100: January | D100: =D24+D43+D62+D81 -> 93941.39 | E100: =IF(D100<>0,F100/D100,0) -> 3.471995458 | F100: =F24+F43+F62+F81 -> 326164.0794 | H100: =H24+H43+H62+H81 -> 97478.23 | I100: =IF(H100<>0,J100/H100,0) -> 0.8012085644 | J100: =J24+J43+J62+J81 -> 78100.39272 | L100: =L24+L43+L62+L81 -> 97478.23 | M100: =IF(L100<>0,N100/L100,0) -> 1.838384708 | N100: =N24+N43+N62+N81 -> 179202.4874 | P100: =J100+N100 -> 257302.8801
B101: February | D101: =D25+D44+D63+D82 -> 85183.5 | E101: 3.454101415 | F101: =F25+F44+F63+F82 -> 294232.4478 | H101: =H25+H44+H63+H82 -> 88847.07 | I101: 0.7963266864 | J101: =J25+J44+J63+J82 -> 70751.29285 | L101: =L25+L44+L63+L82 -> 88847.07 | M101: 1.824964622 | N101: =N25+N44+N63+N82 -> 162142.7595 | P101: 232894.0524
B102: March | D102: 76648.19 | E102: 3.464389592 | F102: 265539.1917 | H102: 84030.53 | I102: 0.7994129323 | J102: 67175.09239 | L102: 84030.53 | M102: 1.833448588 | N102: 154065.6566 | P102: 221240.7489
B103: April | D103: 73927.39 | E103: 3.475426022 | F103: 256929.1749 | H103: 78833.78 | I103: 0.7998051211 | J103: 63051.66096 | L103: 78833.78 | M103: 1.834526699 | N103: 144622.6742 | P103: 207674.3352
B104: May | D104: 84991.44 | E104: 3.473458914 | F104: 295214.2749 | H104: 85809.37 | I104: 0.7998103252 | J104: 68631.22012 | L104: 85809.37 | M104: 1.834541005 | N104: 157420.8079 | P104: 226052.028
B105: June | D105: 97566.39 | E105: 3.460222512 | F105: 337601.4191 | H105: 99818.39 | I105: 0.7987447892 | J105: 79729.41888 | L105: 99818.39 | M105: 1.831611889 | N105: 182828.5499 | P105: 262557.9688
B106: July | D106: 100861.7 | E106: 3.470596062 | F106: 350050.2189 | H106: 100861.7 | I106: 0.7993638926 | J106: 80625.20113 | L106: 100861.7 | M106: 1.83331378 | N106: 184911.1445 | P106: 265536.3456
B107: August | D107: 101521.07 | E107: 3.473107991 | F107: 352593.6394 | H107: 101610.07 | I107: 0.7999088531 | J107: 81278.79455 | L107: 101610.07 | M107: 1.834811854 | N107: 186435.3609 | P107: 267714.1555
B108: September | D108: 78983.46 | E108: 3.48397663 | F108: 275176.5288 | H108: 82764.26 | I108: 0.8022138488 | J108: 66394.63555 | L108: 82764.26 | M108: 1.841148194 | N108: 152381.2679 | P108: 218775.9034
B109: October | D109: 72968.53 | E109: 3.469063381 | F109: 253132.4554 | H109: 77759.16 | I109: 0.800767059 | J109: 62266.97386 | L109: 77759.16 | M109: 1.837171028 | N109: 142856.8759 | P109: 205123.8498
B110: November | D110: 95846.12 | E110: 3.4878018 | F110: 334292.2699 | H110: 98275.15 | I110: 0.8030360247 | J110: 78918.48578 | L110: 98275.15 | M110: 1.843408323 | N110: 181161.2295 | P110: 260079.7153
B111: December | D111: 90678.53 | E111: 3.453170932 | F111: 313128.4639 | H111: 93174.18 | I111: 0.7962100479 | J111: 74186.21832 | L111: 93174.18 | M111: 1.824643987 | N111: 170009.7073 | P111: 244195.9256
B113: Total | D113: =SUM(D100:D111) -> 1053117.71 | E113: =IF(D113<>0,F113/D113,0) -> 3.469749041 | F113: =SUM(F100:F111) -> 3654054.164 | H113: =SUM(H100:H111) -> 1089261.89 | I113: =IF(H113<>0,J113/H113,0) -> 0.7997244695 | J113: =SUM(J100:J111) -> 871109.3871 | L113: =SUM(L100:L111) -> 1089261.89 | M113: =IF(L113<>0,N113/L113,0) -> 1.834304991 | N113: =SUM(N100:N111) -> 1998038.521 | P113: =SUM(P100:P111) -> 2869147.909
N115: Low Voltage Switchgear Credit (if applicable) | P115: ='5. UTRs and Sub-Transmission'!G95 -> 0
N117: Total including deduction for Low Voltage Switchgear Credit | P117: =P113+P115 -> 2869147.909

Sheet 8. Forecast Wholesale
B13: The purpose of this sheet is to calculate the expected billing when forecasted 2016 Uniform Transmission Rates are applied against historical 2014 transmission units.
B20: IESO | D20: Network | H20: Line Connection | L20: Transformation Connection | P20: Total Line
B22: Month | D22: Units Billed | E22: Rate | F22: Amount | H22: Units Billed | I22: Rate | J22: Amount | L22: Units Billed | M22: Rate | N22: Amount | P22: Amount
B24: January | D24: ='6. Historical Wholesale'!D24 -> 15294 | E24: ='5. UTRs and Sub-Transmission'!I22 -> 3.78 | F24: =D24*E24 -> 57811.32 | H24: ='6. Historical Wholesale'!H24 -> 17993 | I24: ='5. UTRs and Sub-Transmission'!I24 -> 0.86 | J24: =H24*I24 -> 15473.98 | L24: ='6. Historical Wholesale'!L24 -> 17993 | M24: ='5. UTRs and Sub-Transmission'!I26 -> 2 | N24: =L24*M24 -> 35986 | P24: =J24+N24 -> 51459.98
B25: February | D25: ='6. Historical Wholesale'!D25 -> 9725 | E25: =E24 -> 3.78 | F25: 36760.5 | H25: ='6. Historical Wholesale'!H25 -> 10384 | I25: =I24 -> 0.86 | J25: 8930.24 | L25: ='6. Historical Wholesale'!L25 -> 10384 | M25: =M24 -> 2 | N25: 20768 | P25: 29698.24
B26: March | D26: ='6. Historical Wholesale'!D26 -> 10894 | E26: 3.78 | F26: 41179.32 | H26: ='6. Historical Wholesale'!H26 -> 13418 | I26: 0.86 | J26: 11539.48 | L26: ='6. Historical Wholesale'!L26 -> 13418 | M26: 2 | N26: 26836 | P26: 38375.48
B27: April | D27: ='6. Historical Wholesale'!D27 -> 12725 | E27: 3.78 | F27: 48100.5 | H27: ='6. Historical Wholesale'!H27 -> 13017 | I27: 0.86 | J27: 11194.62 | L27: ='6. Historical Wholesale'!L27 -> 13017 | M27: 2 | N27: 26034 | P27: 37228.62
B28: May | D28: ='6. Historical Wholesale'!D28 -> 14175 | E28: 3.78 | F28: 53581.5 | H28: ='6. Historical Wholesale'!H28 -> 14175 | I28: 0.86 | J28: 12190.5 | L28: ='6. Historical Wholesale'!L28 -> 14175 | M28: 2 | N28: 28350 | P28: 40540.5
B29: June | D29: ='6. Historical Wholesale'!D29 -> 12762 | E29: 3.78 | F29: 48240.36 | H29: ='6. Historical Wholesale'!H29 -> 15014 | I29: 0.86 | J29: 12912.04 | L29: ='6. Historical Wholesale'!L29 -> 15014 | M29: 2 | N29: 30028 | P29: 42940.04
B30: July | D30: ='6. Historical Wholesale'!D30 -> 16037 | E30: 3.78 | F30: 60619.86 | H30: ='6. Historical Wholesale'!H30 -> 16037 | I30: 0.86 | J30: 13791.82 | L30: ='6. Historical Wholesale'!L30 -> 16037 | M30: 2 | N30: 32074 | P30: 45865.82
B31: August | D31: ='6. Historical Wholesale'!D31 -> 16835 | E31: 3.78 | F31: 63636.3 | H31: ='6. Historical Wholesale'!H31 -> 16924 | I31: 0.86 | J31: 14554.64 | L31: ='6. Historical Wholesale'!L31 -> 16924 | M31: 2 | N31: 33848 | P31: 48402.64
B32: September | D32: ='6. Historical Wholesale'!D32 -> 15431 | E32: 3.78 | F32: 58329.18 | H32: ='6. Historical Wholesale'!H32 -> 16431 | I32: 0.86 | J32: 14130.66 | L32: ='6. Historical Wholesale'!L32 -> 16431 | M32: 2 | N32: 32862 | P32: 46992.66
B33: October | D33: ='6. Historical Wholesale'!D33 -> 11298 | E33: 3.78 | F33: 42706.44 | H33: ='6. Historical Wholesale'!H33 -> 13877 | I33: 0.86 | J33: 11934.22 | L33: ='6. Historical Wholesale'!L33 -> 13877 | M33: 2 | N33: 27754 | P33: 39688.22
B34: November | D34: ='6. Historical Wholesale'!D34 -> 19722 | E34: 3.78 | F34: 74549.16 | H34: ='6. Historical Wholesale'!H34 -> 20631 | I34: 0.86 | J34: 17742.66 | L34: ='6. Historical Wholesale'!L34 -> 20631 | M34: 2 | N34: 41262 | P34: 59004.66
B35: December | D35: ='6. Historical Wholesale'!D35 -> 10123 | E35: 3.78 | F35: 38264.94 | H35: ='6. Historical Wholesale'!H35 -> 10739 | I35: 0.86 | J35: 9235.54 | L35: ='6. Historical Wholesale'!L35 -> 10739 | M35: 2 | N35: 21478 | P35: 30713.54
B37: Total | D37: =SUM(D24:D35) -> 165021 | E37: =IF(D37<>0,F37/D37,0) -> 3.78 | F37: =SUM(F24:F35) -> 623779.38 | H37: =SUM(H24:H35) -> 178640 | I37: =IF(H37<>0,J37/H37,0) -> 0.86 | J37: =SUM(J24:J35) -> 153630.4 | L37: =SUM(L24:L35) -> 178640 | M37: =IF(L37<>0,N37/L37,0) -> 2 | N37: =SUM(N24:N35) -> 357280 | P37: =SUM(P24:P35) -> 510910.4
B39: Hydro One | D39: Network | H39: Line Connection | L39: Transformation Connection | P39: Total Line
B41: Month | D41: Units Billed | E41: Rate | F41: Amount | H41: Units Billed | I41: Rate | J41: Amount | L41: Units Billed | M41: Rate | N41: Amount | P41: Amount
B43: January | D43: ='6. Historical Wholesale'!D43 -> 78647.39 | E43: ='5. UTRs and Sub-Transmission'!I35+'5. UTRs and Sub-Transmission'!I79 -> 3.4121 | F43: =D43*E43 -> 268352.7594 | H43: ='6. Historical Wholesale'!H43 -> 79485.23 | I43: ='5. UTRs and Sub-Transmission'!I37+'5. UTRs and Sub-Transmission'!I81 -> 0.7879 | J43: =H43*I43 -> 62626.41272 | L43: ='6. Historical Wholesale'!L43 -> 79485.23 | M43: ='5. UTRs and Sub-Transmission'!I39 -> 1.8018 | N43: =L43*M43 -> 143216.4874 | P43: =J43+N43 -> 205842.9001
B44: February | D44: ='6. Historical Wholesale'!D44 -> 75458.5 | E44: =E43 -> 3.4121 | F44: 257471.9478 | H44: ='6. Historical Wholesale'!H44 -> 78463.07 | I44: =I43 -> 0.7879 | J44: 61821.05285 | L44: ='6. Historical Wholesale'!L44 -> 78463.07 | M44: =M43 -> 1.8018 | N44: 141374.7595 | P44: 203195.8124
B45: March | D45: ='6. Historical Wholesale'!D45 -> 65754.19 | E45: 3.4121 | F45: 224359.8717 | H45: ='6. Historical Wholesale'!H45 -> 70612.53 | I45: 0.7879 | J45: 55635.61239 | L45: ='6. Historical Wholesale'!L45 -> 70612.53 | M45: 1.8018 | N45: 127229.6566 | P45: 182865.2689
B46: April | D46: ='6. Historical Wholesale'!D46 -> 61202.39 | E46: 3.4121 | F46: 208828.6749 | H46: ='6. Historical Wholesale'!H46 -> 65816.78 | I46: 0.7879 | J46: 51857.04096 | L46: ='6. Historical Wholesale'!L46 -> 65816.78 | M46: 1.8018 | N46: 118588.6742 | P46: 170445.7152
B47: May | D47: ='6. Historical Wholesale'!D47 -> 70816.44 | E47: 3.4121 | F47: 241632.7749 | H47: ='6. Historical Wholesale'!H47 -> 71634.37 | I47: 0.7879 | J47: 56440.72012 | L47: ='6. Historical Wholesale'!L47 -> 71634.37 | M47: 1.8018 | N47: 129070.8079 | P47: 185511.528
B48: June | D48: ='6. Historical Wholesale'!D48 -> 84804.39 | E48: 3.4121 | F48: 289361.0591 | H48: ='6. Historical Wholesale'!H48 -> 84804.39 | I48: 0.7879 | J48: 66817.37888 | L48: ='6. Historical Wholesale'!L48 -> 84804.39 | M48: 1.8018 | N48: 152800.5499 | P48: 219617.9288
B49: July | D49: ='6. Historical Wholesale'!D49 -> 84824.7 | E49: 3.4121 | F49: 289430.3589 | H49: ='6. Historical Wholesale'!H49 -> 84824.7 | I49: 0.7879 | J49: 66833.38113 | L49: ='6. Historical Wholesale'!L49 -> 84824.7 | M49: 1.8018 | N49: 152837.1445 | P49: 219670.5256
B50: August | D50: ='6. Historical Wholesale'!D50 -> 84686.07 | E50: 3.4121 | F50: 288957.3394 | H50: ='6. Historical Wholesale'!H50 -> 84686.07 | I50: 0.7879 | J50: 66724.15455 | L50: ='6. Historical Wholesale'!L50 -> 84686.07 | M50: 1.8018 | N50: 152587.3609 | P50: 219311.5155
B51: September | D51: ='6. Historical Wholesale'!D51 -> 63552.46 | E51: 3.4121 | F51: 216847.3488 | H51: ='6. Historical Wholesale'!H51 -> 66333.26 | I51: 0.7879 | J51: 52263.97555 | L51: ='6. Historical Wholesale'!L51 -> 66333.26 | M51: 1.8018 | N51: 119519.2679 | P51: 171783.2434
B52: October | D52: ='6. Historical Wholesale'!D52 -> 61670.53 | E52: 3.4121 | F52: 210426.0154 | H52: ='6. Historical Wholesale'!H52 -> 63882.16 | I52: 0.7879 | J52: 50332.75386 | L52: ='6. Historical Wholesale'!L52 -> 63882.16 | M52: 1.8018 | N52: 115102.8759 | P52: 165435.6298
B53: November | D53: ='6. Historical Wholesale'!D53 -> 76124.12 | E53: 3.4121 | F53: 259743.1099 | H53: ='6. Historical Wholesale'!H53 -> 77644.15 | I53: 0.7879 | J53: 61175.82579 | L53: ='6. Historical Wholesale'!L53 -> 77644.15 | M53: 1.8018 | N53: 139899.2295 | P53: 201075.0553
B54: December | D54: ='6. Historical Wholesale'!D54 -> 80555.53 | E54: 3.4121 | F54: 274863.5239 | H54: ='6. Historical Wholesale'!H54 -> 82435.18 | I54: 0.7879 | J54: 64950.67832 | L54: ='6. Historical Wholesale'!L54 -> 82435.18 | M54: 1.8018 | N54: 148531.7073 | P54: 213482.3856
B56: Total | D56: =SUM(D43:D54) -> 888096.71 | E56: =IF(D56<>0,F56/D56,0) -> 3.4121 | F56: =SUM(F43:F54) -> 3030274.784 | H56: =SUM(H43:H54) -> 910621.89 | I56: =IF(H56<>0,J56/H56,0) -> 0.7879 | J56: =SUM(J43:J54) -> 717478.9871 | L56: =SUM(L43:L54) -> 910621.89 | M56: =IF(L56<>0,N56/L56,0) -> 1.8018 | N56: =SUM(N43:N54) -> 1640758.521 | P56: =SUM(P43:P54) -> 2358237.509
B58: ='6. Historical Wholesale'!B58 -> Add Extra Host Here (I) | D58: Network | H58: Line Connection | L58: Transformation Connection | P58: Total Line
B60: Month | D60: Units Billed | E60: Rate | F60: Amount | H60: Units Billed | I60: Rate | J60: Amount | L60: Units Billed | M60: Rate | N60: Amount | P60: Amount
B62: January | D62: ='6. Historical Wholesale'!D62 -> 0 | E62: ='5. UTRs and Sub-Transmission'!I50 -> 0 | F62: =D62*E62 -> 0 | H62: ='6. Historical Wholesale'!H62 -> 0 | I62: ='5. UTRs and Sub-Transmission'!I52 -> 0 | J62: =H62*I62 -> 0 | L62: ='6. Historical Wholesale'!L62 -> 0 | M62: ='5. UTRs and Sub-Transmission'!I54 -> 0 | N62: =L62*M62 -> 0 | P62: =J62+N62 -> 0
B63: February | D63: ='6. Historical Wholesale'!D63 -> 0 | E63: =E62 -> 0 | F63: 0 | H63: ='6. Historical Wholesale'!H63 -> 0 | I63: =I62 -> 0 | J63: 0 | L63: ='6. Historical Wholesale'!L63 -> 0 | M63: =M62 -> 0 | N63: 0 | P63: 0
B64: March | D64: ='6. Historical Wholesale'!D64 -> 0 | E64: 0 | F64: 0 | H64: ='6. Historical Wholesale'!H64 -> 0 | I64: 0 | J64: 0 | L64: ='6. Historical Wholesale'!L64 -> 0 | M64: 0 | N64: 0 | P64: 0
B65: April | D65: ='6. Historical Wholesale'!D65 -> 0 | E65: 0 | F65: 0 | H65: ='6. Historical Wholesale'!H65 -> 0 | I65: 0 | J65: 0 | L65: ='6. Historical Wholesale'!L65 -> 0 | M65: 0 | N65: 0 | P65: 0
B66: May | D66: ='6. Historical Wholesale'!D66 -> 0 | E66: 0 | F66: 0 | H66: ='6. Historical Wholesale'!H66 -> 0 | I66: 0 | J66: 0 | L66: ='6. Historical Wholesale'!L66 -> 0 | M66: 0 | N66: 0 | P66: 0
B67: June | D67: ='6. Historical Wholesale'!D67 -> 0 | E67: 0 | F67: 0 | H67: ='6. Historical Wholesale'!H67 -> 0 | I67: 0 | J67: 0 | L67: ='6. Historical Wholesale'!L67 -> 0 | M67: 0 | N67: 0 | P67: 0
B68: July | D68: ='6. Historical Wholesale'!D68 -> 0 | E68: 0 | F68: 0 | H68: ='6. Historical Wholesale'!H68 -> 0 | I68: 0 | J68: 0 | L68: ='6. Historical Wholesale'!L68 -> 0 | M68: 0 | N68: 0 | P68: 0
B69: August | D69: ='6. Historical Wholesale'!D69 -> 0 | E69: 0 | F69: 0 | H69: ='6. Historical Wholesale'!H69 -> 0 | I69: 0 | J69: 0 | L69: ='6. Historical Wholesale'!L69 -> 0 | M69: 0 | N69: 0 | P69: 0
B70: September | D70: ='6. Historical Wholesale'!D70 -> 0 | E70: 0 | F70: 0 | H70: ='6. Historical Wholesale'!H70 -> 0 | I70: 0 | J70: 0 | L70: ='6. Historical Wholesale'!L70 -> 0 | M70: 0 | N70: 0 | P70: 0
B71: October | D71: ='6. Historical Wholesale'!D71 -> 0 | E71: 0 | F71: 0 | H71: ='6. Historical Wholesale'!H71 -> 0 | I71: 0 | J71: 0 | L71: ='6. Historical Wholesale'!L71 -> 0 | M71: 0 | N71: 0 | P71: 0
B72: November | D72: ='6. Historical Wholesale'!D72 -> 0 | E72: 0 | F72: 0 | H72: ='6. Historical Wholesale'!H72 -> 0 | I72: 0 | J72: 0 | L72: ='6. Historical Wholesale'!L72 -> 0 | M72: 0 | N72: 0 | P72: 0
B73: December | D73: ='6. Historical Wholesale'!D73 -> 0 | E73: 0 | F73: 0 | H73: ='6. Historical Wholesale'!H73 -> 0 | I73: 0 | J73: 0 | L73: ='6. Historical Wholesale'!L73 -> 0 | M73: 0 | N73: 0 | P73: 0
B75: Total | D75: =SUM(D62:D73) -> 0 | E75: =IF(D75<>0,F75/D75,0) -> 0 | F75: =SUM(F62:F73) -> 0 | H75: =SUM(H62:H73) -> 0 | I75: =IF(H75<>0,J75/H75,0) -> 0 | J75: =SUM(J62:J73) -> 0 | L75: =SUM(L62:L73) -> 0 | M75: =IF(L75<>0,N75/L75,0) -> 0 | N75: =SUM(N62:N73) -> 0 | P75: =SUM(P62:P73) -> 0
B77: ='6. Historical Wholesale'!B77 -> Add Extra Host Here (II) | D77: Network | H77: Line Connection | L77: Transformation Connection | P77: Total Line
B79: Month | D79: Units Billed | E79: Rate | F79: Amount | H79: Units Billed | I79: Rate | J79: Amount | L79: Units Billed | M79: Rate | N79: Amount | P79: Amount
B81: January | D81: ='6. Historical Wholesale'!D81 -> 0 | E81: ='5. UTRs and Sub-Transmission'!I65 -> 0 | F81: =D81*E81 -> 0 | H81: ='6. Historical Wholesale'!H81 -> 0 | I81: ='5. UTRs and Sub-Transmission'!I67 -> 0 | J81: =H81*I81 -> 0 | L81: ='6. Historical Wholesale'!L81 -> 0 | M81: ='5. UTRs and Sub-Transmission'!I69 -> 0 | N81: =L81*M81 -> 0 | P81: =J81+N81 -> 0
B82: February | D82: ='6. Historical Wholesale'!D82 -> 0 | E82: =E81 -> 0 | F82: 0 | H82: ='6. Historical Wholesale'!H82 -> 0 | I82: =I81 -> 0 | J82: 0 | L82: ='6. Historical Wholesale'!L82 -> 0 | M82: =M81 -> 0 | N82: 0 | P82: 0
B83: March | D83: ='6. Historical Wholesale'!D83 -> 0 | E83: 0 | F83: 0 | H83: ='6. Historical Wholesale'!H83 -> 0 | I83: 0 | J83: 0 | L83: ='6. Historical Wholesale'!L83 -> 0 | M83: 0 | N83: 0 | P83: 0
B84: April | D84: ='6. Historical Wholesale'!D84 -> 0 | E84: 0 | F84: 0 | H84: ='6. Historical Wholesale'!H84 -> 0 | I84: 0 | J84: 0 | L84: ='6. Historical Wholesale'!L84 -> 0 | M84: 0 | N84: 0 | P84: 0
B85: May | D85: ='6. Historical Wholesale'!D85 -> 0 | E85: 0 | F85: 0 | H85: ='6. Historical Wholesale'!H85 -> 0 | I85: 0 | J85: 0 | L85: ='6. Historical Wholesale'!L85 -> 0 | M85: 0 | N85: 0 | P85: 0
B86: June | D86: ='6. Historical Wholesale'!D86 -> 0 | E86: 0 | F86: 0 | H86: ='6. Historical Wholesale'!H86 -> 0 | I86: 0 | J86: 0 | L86: ='6. Historical Wholesale'!L86 -> 0 | M86: 0 | N86: 0 | P86: 0
B87: July | D87: ='6. Historical Wholesale'!D87 -> 0 | E87: 0 | F87: 0 | H87: ='6. Historical Wholesale'!H87 -> 0 | I87: 0 | J87: 0 | L87: ='6. Historical Wholesale'!L87 -> 0 | M87: 0 | N87: 0 | P87: 0
B88: August | D88: ='6. Historical Wholesale'!D88 -> 0 | E88: 0 | F88: 0 | H88: ='6. Historical Wholesale'!H88 -> 0 | I88: 0 | J88: 0 | L88: ='6. Historical Wholesale'!L88 -> 0 | M88: 0 | N88: 0 | P88: 0
B89: September | D89: ='6. Historical Wholesale'!D89 -> 0 | E89: 0 | F89: 0 | H89: ='6. Historical Wholesale'!H89 -> 0 | I89: 0 | J89: 0 | L89: ='6. Historical Wholesale'!L89 -> 0 | M89: 0 | N89: 0 | P89: 0
B90: October | D90: ='6. Historical Wholesale'!D90 -> 0 | E90: 0 | F90: 0 | H90: ='6. Historical Wholesale'!H90 -> 0 | I90: 0 | J90: 0 | L90: ='6. Historical Wholesale'!L90 -> 0 | M90: 0 | N90: 0 | P90: 0
B91: November | D91: ='6. Historical Wholesale'!D91 -> 0 | E91: 0 | F91: 0 | H91: ='6. Historical Wholesale'!H91 -> 0 | I91: 0 | J91: 0 | L91: ='6. Historical Wholesale'!L91 -> 0 | M91: 0 | N91: 0 | P91: 0
B92: December | D92: ='6. Historical Wholesale'!D92 -> 0 | E92: 0 | F92: 0 | H92: ='6. Historical Wholesale'!H92 -> 0 | I92: 0 | J92: 0 | L92: ='6. Historical Wholesale'!L92 -> 0 | M92: 0 | N92: 0 | P92: 0
B94: Total | D94: =SUM(D81:D92) -> 0 | E94: =IF(D94<>0,F94/D94,0) -> 0 | F94: =SUM(F81:F92) -> 0 | H94: =SUM(H81:H92) -> 0 | I94: =IF(H94<>0,J94/H94,0) -> 0 | J94: =SUM(J81:J92) -> 0 | L94: =SUM(L81:L92) -> 0 | M94: =IF(L94<>0,N94/L94,0) -> 0 | N94: =SUM(N81:N92) -> 0 | P94: =SUM(P81:P92) -> 0
B96: Total | D96: Network | H96: Line Connection | L96: Transformation Connection | P96: Total Line
B98: Month | D98: Units Billed | E98: Rate | F98: Amount | H98: Units Billed | I98: Rate | J98: Amount | L98: Units Billed | M98: Rate | N98: Amount | P98: Amount
B100: January | D100: =D24+D43+D62+D81 -> 93941.39 | E100: =IF(D100<>0,F100/D100,0) -> 3.471995458 | F100: =F24+F43+F62+F81 -> 326164.0794 | H100: =H24+H43+H62+H81 -> 97478.23 | I100: =IF(H100<>0,J100/H100,0) -> 0.8012085644 | J100: =J24+J43+J62+J81 -> 78100.39272 | L100: =L24+L43+L62+L81 -> 97478.23 | M100: =IF(L100<>0,N100/L100,0) -> 1.838384708 | N100: =N24+N43+N62+N81 -> 179202.4874 | P100: =J100+N100 -> 257302.8801
B101: February | D101: =D25+D44+D63+D82 -> 85183.5 | E101: 3.454101415 | F101: 294232.4478 | H101: =H25+H44+H63+H82 -> 88847.07 | I101: 0.7963266864 | J101: =J25+J44+J63+J82 -> 70751.29285 | L101: =L25+L44+L63+L82 -> 88847.07 | M101: 1.824964622 | N101: =N25+N44+N63+N82 -> 162142.7595 | P101: 232894.0524
B102: March | D102: 76648.19 | E102: 3.464389592 | F102: 265539.1917 | H102: =H26+H45+H64+H83 -> 84030.53 | I102: 0.7994129323 | J102: =J26+J45+J64+J83 -> 67175.09239 | L102: =L26+L45+L64+L83 -> 84030.53 | M102: 1.833448588 | N102: =N26+N45+N64+N83 -> 154065.6566 | P102: 221240.7489
B103: April | D103: 73927.39 | E103: 3.475426022 | F103: 256929.1749 | H103: =H27+H46+H65+H84 -> 78833.78 | I103: 0.7998051211 | J103: =J27+J46+J65+J84 -> 63051.66096 | L103: =L27+L46+L65+L84 -> 78833.78 | M103: 1.834526699 | N103: =N27+N46+N65+N84 -> 144622.6742 | P103: 207674.3352
B104: May | D104: 84991.44 | E104: 3.473458914 | F104: 295214.2749 | H104: =H28+H47+H66+H85 -> 85809.37 | I104: 0.7998103252 | J104: =J28+J47+J66+J85 -> 68631.22012 | L104: =L28+L47+L66+L85 -> 85809.37 | M104: 1.834541005 | N104: =N28+N47+N66+N85 -> 157420.8079 | P104: 226052.028
B105: June | D105: 97566.39 | E105: 3.460222512 | F105: 337601.4191 | H105: =H29+H48+H67+H86 -> 99818.39 | I105: 0.7987447892 | J105: =J29+J48+J67+J86 -> 79729.41888 | L105: =L29+L48+L67+L86 -> 99818.39 | M105: 1.831611889 | N105: =N29+N48+N67+N86 -> 182828.5499 | P105: 262557.9688
B106: July | D106: 100861.7 | E106: 3.470596062 | F106: 350050.2189 | H106: =H30+H49+H68+H87 -> 100861.7 | I106: 0.7993638926 | J106: =J30+J49+J68+J87 -> 80625.20113 | L106: =L30+L49+L68+L87 -> 100861.7 | M106: 1.83331378 | N106: =N30+N49+N68+N87 -> 184911.1445 | P106: 265536.3456
B107: August | D107: 101521.07 | E107: 3.473107991 | F107: 352593.6394 | H107: =H31+H50+H69+H88 -> 101610.07 | I107: 0.7999088531 | J107: =J31+J50+J69+J88 -> 81278.79455 | L107: =L31+L50+L69+L88 -> 101610.07 | M107: 1.834811854 | N107: =N31+N50+N69+N88 -> 186435.3609 | P107: 267714.1555
B108: September | D108: 78983.46 | E108: 3.48397663 | F108: 275176.5288 | H108: =H32+H51+H70+H89 -> 82764.26 | I108: 0.8022138488 | J108: =J32+J51+J70+J89 -> 66394.63555 | L108: =L32+L51+L70+L89 -> 82764.26 | M108: 1.841148194 | N108: =N32+N51+N70+N89 -> 152381.2679 | P108: 218775.9034
B109: October | D109: 72968.53 | E109: 3.469063381 | F109: 253132.4554 | H109: =H33+H52+H71+H90 -> 77759.16 | I109: 0.800767059 | J109: =J33+J52+J71+J90 -> 62266.97386 | L109: =L33+L52+L71+L90 -> 77759.16 | M109: 1.837171028 | N109: =N33+N52+N71+N90 -> 142856.8759 | P109: 205123.8498
B110: November | D110: 95846.12 | E110: 3.4878018 | F110: 334292.2699 | H110: =H34+H53+H72+H91 -> 98275.15 | I110: 0.8030360247 | J110: =J34+J53+J72+J91 -> 78918.48578 | L110: =L34+L53+L72+L91 -> 98275.15 | M110: 1.843408323 | N110: =N34+N53+N72+N91 -> 181161.2295 | P110: 260079.7153
B111: December | D111: 90678.53 | E111: 3.453170932 | F111: 313128.4639 | H111: =H35+H54+H73+H92 -> 93174.18 | I111: 0.7962100479 | J111: =J35+J54+J73+J92 -> 74186.21832 | L111: =L35+L54+L73+L92 -> 93174.18 | M111: 1.824643987 | N111: =N35+N54+N73+N92 -> 170009.7073 | P111: 244195.9256
B113: Total | D113: =SUM(D100:D111) -> 1053117.71 | E113: =IF(D113<>0,F113/D113,0) -> 3.469749041 | F113: =SUM(F100:F111) -> 3654054.164 | H113: =SUM(H100:H111) -> 1089261.89 | I113: =IF(H113<>0,J113/H113,0) -> 0.7997244695 | J113: =SUM(J100:J111) -> 871109.3871 | L113: =SUM(L100:L111) -> 1089261.89 | M113: =IF(L113<>0,N113/L113,0) -> 1.834304991 | N113: =SUM(N100:N111) -> 1998038.521 | P113: =SUM(P100:P111) -> 2869147.909
N115: Low Voltage Switchgear Credit (if applicable) | P115: ='5. UTRs and Sub-Transmission'!I95 -> 0
N117: Total including deduction for Low Voltage Switchgear Credit | P117: =P113+P115 -> 2869147.909

Sheet 9. RTSR Rates to Forecast
A13: The purpose of this sheet is to re-align the current RTS Network Rates to recover current wholesale network costs.
A15: Rate Class | B15: Rate Description | C15: Unit | D15: Current RTSR-Network | E15: Loss Adjusted Billed kWh | F15: Billed kW | G15: Billed Amount | H15: Billed Amount % | I15: Current Wholesale Billing | J15: Adjusted RTSR Network
A17: Residential - Time of Use | B17: RTSR - Network | C17: kWh | D17: 0.0074 | E17: 216816285.8 | F17: 0 | G17: =ROUND(D17*E17, 2) -> 1604440.52 | H17: =G17/3961176.29 -> 0.4050414328 | I17: =H17*total_current_wholesale_network -> 1480043.334 | J17: =IF(ISERROR(I17/E17), 0, I17/E17) -> 0.006826255364
A18: General Service Less Than 50 kW | B18: RTSR - Network | C18: kWh | D18: 0.0066 | E18: 54632149.21 | F18: 0 | G18: =ROUND(D18*E18, 2) -> 360572.18 | H18: 0.09102654202 | I18: 332615.9149 | J18: =IF(ISERROR(I18/E18), 0, I18/E18) -> 0.006088281711
A19: General Service 50 to 999 kW | B19: RTSR - Network | C19: kW | D19: 2.8647 | F19: 380752.12 | G19: =ROUND(D19*F19, 2) -> 1090740.6 | H19: 0.2753577524 | I19: 1006172.142 | J19: =IF(ISERROR(I19/F19), 0, I19/F19) -> 2.642591043
A20: General Service 1,000 to 4,999 kW | B20: RTSR - Network | C20: kW | D20: 2.8647 | F20: 307814.97 | G20: =ROUND(D20*F20, 2) -> 881797.54 | H20: 0.2226100217 | I20: 813429.0769 | J20: =IF(ISERROR(I20/F20), 0, I20/F20) -> 2.642591024
A21: Unmetered Scattered Load | B21: RTSR - Network | C21: kWh | D21: 0.0066 | E21: 978576.4848 | F21: 0 | G21: =ROUND(D21*E21, 2) -> 6458.6 | H21: 0.001630475275 | I21: 5957.844968 | J21: =IF(ISERROR(I21/E21), 0, I21/E21) -> 0.006088277268
A22: Sentinel Lighting | B22: RTSR - Network | C22: kW | D22: 2.0437 | F22: 671.39 | G22: =ROUND(D22*F22, 2) -> 1372.12 | H22: 0.0003463920562 | I22: 1265.735335 | J22: =IF(ISERROR(I22/F22), 0, I22/F22) -> 1.885246035
A23: Street Lighting | B23: RTSR - Network | C23: kW | D23: 2.0343 | F23: 7764.21 | G23: =ROUND(D23*F23, 2) -> 15794.73 | H23: 0.003987383758 | I23: 14570.11622 | J23: =IF(ISERROR(I23/F23), 0, I23/F23) -> 1.876574207
A25: The purpose of this table is to re-align the current RTS Connection Rates to recover current wholesale connection costs.
A26: Rate Class | B26: Rate Description | C26: Unit | D26: Current RTSR-Connection | E26: Loss Adjusted Billed kWh | F26: Billed kW | G26: Billed Amount | H26: Billed Amount % | I26: Current Wholesale Billing | J26: Adjusted RTSR-Connection
A28: Residential - Time of Use | B28: RTSR - Connection | C28: kWh | D28: 0.0051 | E28: 216816285.8 | F28: 0 | G28: =ROUND(D28*E28, 2) -> 1105763.06 | H28: =G28/2801611.97 -> 0.3946881552 | I28: =H28*Total_Current_Wholesale_Lineplus -> 1132418.695 | J28: =IF(ISERROR(I28/E28), 0, I28/E28) -> 0.005222941121
A29: General Service Less Than 50 kW | B29: RTSR - Connection | C29: kWh | D29: 0.0048 | E29: 54632149.21 | F29: 0 | G29: =ROUND(D29*E29, 2) -> 262234.32 | H29: 0.09360122772 | I29: 268555.7668 | J29: =IF(ISERROR(I29/E29), 0, I29/E29) -> 0.004915709351
A30: General Service 50 to 999 kW | B30: RTSR - Connection | C30: kW | D30: 2.0574 | F30: 380752.12 | G30: =ROUND(D30*F30, 2) -> 783359.41 | H30: 0.2796102452 | I30: 802243.1503 | J30: =IF(ISERROR(I30/F30), 0, I30/F30) -> 2.106995886
A31: General Service 1,000 to 4,999 kW | B31: RTSR - Connection | C31: kW | D31: 2.0574 | F31: 307814.97 | G31: =ROUND(D31*F31, 2) -> 633298.52 | H31: 0.2260479063 | I31: 648564.8775 | J31: =IF(ISERROR(I31/F31), 0, I31/F31) -> 2.106995893
A32: Unmetered Scattered Load | B32: RTSR - Connection | C32: kWh | D32: 0.0048 | E32: 978576.4848 | F32: 0 | G32: =ROUND(D32*E32, 2) -> 4697.17 | H32: 0.001676595492 | I32: 4810.40045 | J32: =IF(ISERROR(I32/E32), 0, I32/E32) -> 0.004915712287
A33: Sentinel Lighting | B33: RTSR - Connection | C33: kW | D33: 1.4811 | F33: 671.39 | G33: =ROUND(D33*F33, 2) -> 994.4 | H33: 0.0003549385178 | I33: 1018.371106 | J33: =IF(ISERROR(I33/F33), 0, I33/F33) -> 1.51681006
A34: Street Lighting | B34: RTSR - Connection | C34: kW | D34: 1.4509 | F34: 7764.21 | G34: =ROUND(D34*F34, 2) -> 11265.09 | H34: 0.004020931564 | I34: 11536.64739 | J34: =IF(ISERROR(I34/F34), 0, I34/F34) -> 1.485875239
A36: The purpose of this table is to update the re-aligned RTS Network Rates to recover future wholesale network costs.
A37: Rate Class | B37: Rate Description | C37: Unit | D37: Adjusted RTSR-Network | E37: Loss Adjusted Billed kWh | F37: Billed kW | G37: Billed Amount | H37: Billed Amount % | I37: Current Wholesale Billing | J37: Proposed RTSR-Network
A39: Residential - Time of Use | B39: RTSR - Network | C39: kWh | D39: 0.006826255364 | E39: 216816285.8 | F39: 0 | G39: =IF(ISERROR(D39*E39), 0, ROUND(D39*E39, 2)) -> 1480043.33 | H39: =G39/3654054.16 -> 0.4050414321 | I39: =H39*forecast_wholesale_network -> 1480043.332 | J39: =IF(ISERROR(I39/E39), 0, I39/E39) -> 0.006826255353
A40: General Service Less Than 50 kW | B40: RTSR - Network | C40: kWh | D40: 0.006088281711 | E40: 54632149.21 | F40: 0 | G40: =IF(ISERROR(D40*E40), 0, ROUND(D40*E40, 2)) -> 332615.91 | H40: 0.09102654078 | I40: 332615.9104 | J40: =IF(ISERROR(I40/E40), 0, I40/E40) -> 0.006088281628
A41: General Service 50 to 999 kW | B41: RTSR - Network | C41: kW | D41: 2.642591043 | F41: 380752.12 | G41: =ROUND(D41*F41, 2) -> 1006172.14 | H41: 0.2753577522 | I41: 1006172.141 | J41: =IF(ISERROR(I41/F41), 0, I41/F41) -> 2.642591041
A42: General Service 1,000 to 4,999 kW | B42: RTSR - Network | C42: kW | D42: 2.642591024 | F42: 307814.97 | G42: =ROUND(D42*F42, 2) -> 813429.08 | H42: 0.2226100228 | I42: 813429.0809 | J42: =IF(ISERROR(I42/F42), 0, I42/F42) -> 2.642591038
A43: Unmetered Scattered Load | B43: RTSR - Network | C43: kWh | D43: 0.006088277268 | E43: 978576.4848 | F43: 0 | G43: =IF(ISERROR(D43*E43), 0, ROUND(D43*E43, 2)) -> 5957.84 | H43: 0.001630473917 | I43: 5957.840007 | J43: =IF(ISERROR(I43/E43), 0, I43/E43) -> 0.006088272199
A44: Sentinel Lighting | B44: RTSR - Network | C44: kW | D44: 1.885246035 | F44: 671.39 | G44: =ROUND(D44*F44, 2) -> 1265.74 | H44: 0.0003463933332 | I44: 1265.740001 | J44: =IF(ISERROR(I44/F44), 0, I44/F44) -> 1.885252985
A45: Street Lighting | B45: RTSR - Network | C45: kW | D45: 1.876574207 | F45: 7764.21 | G45: =ROUND(D45*F45, 2) -> 14570.12 | H45: 0.003987384796 | I45: 14570.12002 | J45: =IF(ISERROR(I45/F45), 0, I45/F45) -> 1.876574696
A47: The purpose of this table is to update the re-aligned RTS Connection Rates to recover future wholesale connection costs.
A48: Rate Class | B48: Rate Description | C48: Unit | D48: Adjusted RTSR-Connection | E48: Loss Adjusted Billed kWh | F48: Billed kW | G48: Billed Amount | H48: Billed Amount % | I48: Current Wholesale Billing | J48: Proposed RTSR-Connection
A50: Residential - Time of Use | B50: RTSR - Connection | C50: kWh | D50: 0.005222941121 | E50: 216816285.8 | F50: 0 | G50: =ROUND(D50*E50, 2) -> 1132418.69 | H50: =G50/2869147.91 -> 0.3946881533 | I50: =H50*forecast_wholesale_lineplus -> 1132418.689 | J50: =IF(ISERROR(I50/E50), 0, I50/E50) -> 0.005222941096
A51: General Service Less Than 50 kW | B51: RTSR - Connection | C51: kWh | D51: 0.004915709351 | E51: 54632149.21 | F51: 0 | G51: =ROUND(D51*E51, 2) -> 268555.77 | H51: 0.09360122881 | I51: 268555.7699 | J51: =IF(ISERROR(I51/E51), 0, I51/E51) -> 0.004915709408
A52: General Service 50 to 999 kW | B52: RTSR - Connection | C52: kW | D52: 2.106995886 | F52: 380752.12 | G52: =ROUND(D52*F52, 2) -> 802243.15 | H52: 0.279610245 | I52: 802243.1496 | J52: =IF(ISERROR(I52/F52), 0, I52/F52) -> 2.106995884
A53: General Service 1,000 to 4,999 kW | B53: RTSR - Connection | C53: kW | D53: 2.106995893 | F53: 307814.97 | G53: =ROUND(D53*F53, 2) -> 648564.88 | H53: 0.226047907 | I53: 648564.8797 | J53: =IF(ISERROR(I53/F53), 0, I53/F53) -> 2.1069959
A54: Unmetered Scattered Load | B54: RTSR - Connection | C54: kWh | D54: 0.004915712287 | E54: 978576.4848 | F54: 0 | G54: =ROUND(D54*E54, 2) -> 4810.4 | H54: 0.001676595335 | I54: 4810.399998 | J54: =IF(ISERROR(I54/E54), 0, I54/E54) -> 0.004915711824
A55: Sentinel Lighting | B55: RTSR - Connection | C55: kW | D55: 1.51681006 | F55: 671.39 | G55: =ROUND(D55*F55, 2) -> 1018.37 | H55: 0.0003549381321 | I55: 1018.369999 | J55: =IF(ISERROR(I55/F55), 0, I55/F55) -> 1.516808412
A56: Street Lighting | B56: RTSR - Connection | C56: kW | D56: 1.485875239 | F56: 7764.21 | G56: =ROUND(D56*F56, 2) -> 11536.65 | H56: 0.004020932473 | I56: 11536.64999 | J56: =IF(ISERROR(I56/F56), 0, I56/F56) -> 1.485875574

Sheet hidden1 (hidden)
A1: =IF('3. Rate Classes'!L17=1, '3. Rate Classes'!C17, "") -> Residential - Time of Use | B1: 1
A2: =IF('3. Rate Classes'!L18=1, '3. Rate Classes'!C18, "") -> General Service Less Than 50 kW | B2: 2
A3: =IF('3. Rate Classes'!L19=1, '3. Rate Classes'!C19, "") -> General Service 50 to 999 kW | B3: 3
A4: =IF('3. Rate Classes'!L20=1, '3. Rate Classes'!C20, "") -> General Service 1,000 to 4,999 kW | B4: 4
A5: =IF('3. Rate Classes'!L21=1, '3. Rate Classes'!C21, "") -> Unmetered Scattered Load | B5: 5
A6: =IF('3. Rate Classes'!L22=1, '3. Rate Classes'!C22, "") -> Sentinel Lighting | B6: 6
A7: =IF('3. Rate Classes'!L23=1, '3. Rate Classes'!C23, "") -> Street Lighting | B7: 7
A8: =IF('3. Rate Classes'!L24=1, '3. Rate Classes'!C24, "") ->  | B8: 8
A9: =IF('3. Rate Classes'!L25=1, '3. Rate Classes'!C25, "") ->  | B9: 9
A10: =IF('3. Rate Classes'!L26=1, '3. Rate Classes'!C26, "") ->  | B10: 10
A11: =IF('3. Rate Classes'!L27=1, '3. Rate Classes'!C27, "") ->  | B11: 11
A12: =IF('3. Rate Classes'!L28=1, '3. Rate Classes'!C28, "") ->  | B12: 12
A13: =IF('3. Rate Classes'!L29=1, '3. Rate Classes'!C29, "") ->  | B13: 13
A14: =IF('3. Rate Classes'!L30=1, '3. Rate Classes'!C30, "") ->  | B14: 14
A15: =IF('3. Rate Classes'!L31=1, '3. Rate Classes'!C31, "") ->  | B15: 15
A16: =IF('3. Rate Classes'!L32=1, '3. Rate Classes'!C32, "") ->  | B16: 16
A17: =IF('3. Rate Classes'!L33=1, '3. Rate Classes'!C33, "") ->  | B17: 17
A18: =IF('3. Rate Classes'!L34=1, '3. Rate Classes'!C34, "") ->  | B18: 18
A19: =IF('3. Rate Classes'!L35=1, '3. Rate Classes'!C35, "") ->  | B19: 19
A20: =IF('3. Rate Classes'!L36=1, '3. Rate Classes'!C36, "") ->  | B20: 20
A21: =IF('3. Rate Classes'!L37=1, '3. Rate Classes'!C37, "") ->  | B21: 21
A22: =IF('3. Rate Classes'!L38=1, '3. Rate Classes'!C38, "") ->  | B22: 22
